Workbook

Sheet TC111 2012預算
A2: 部門代碼：
A3: 部門名稱： | B3: 實際正職
A4: 業務人員： | B4: 實際約聘
B5: TC111 Y2012 預算 | R5: 單位：NT$ 千元
A6: 預算人數 | B6: 18 | C6: 18 | D6: 18 | F6: 18 | G6: 18 | H6: 18 | J6: 18 | K6: 18 | L6: 18 | N6: 18 | O6: 18 | P6: 18
A7: 會計科目 | B7: 1月-B | C7: 2月-B | D7: 3月-B | E7: Q1-B | F7: 4月-B | G7: 5月-B | H7: 6月-B | I7: Q2-B | J7: 7月-B | K7: 8月-B | L7: 9月-B | M7: Q3-B | N7: 10月-B | O7: 11月-B | P7: 12月-B | Q7: Q4-B | R7: 合計-B
A8: 銷貨收入 | B8: 6000 | C8: 4000 | D8: 8000 | E8: =SUM(B8:D8) -> 18000 | F8: 11000 | G8: 14000 | H8: 23000 | I8: =SUM(F8:H8) -> 48000 | J8: 15000 | K8: 16000 | L8: 28000 | M8: =SUM(J8:L8) -> 59000 | N8: 20000 | O8: 27000 | P8: 29000 | Q8: =SUM(N8:P8) -> 76000 | R8: =E8+I8+M8+Q8 -> 201000
A9: 維護收入 | B9: 2000 | C9: 2000 | D9: 2000 | E9: =SUM(B9:D9) -> 6000 | F9: 2000 | G9: 2000 | H9: 2000 | I9: =SUM(F9:H9) -> 6000 | J9: 2000 | K9: 2000 | L9: 2000 | M9: =SUM(J9:L9) -> 6000 | N9: 2000 | O9: 2000 | P9: 2000 | Q9: =SUM(N9:P9) -> 6000 | R9: 24000
A10: 營業收入合計 | B10: =B8+B9 -> 8000 | C10: =C8+C9 -> 6000 | D10: =D8+D9 -> 10000 | E10: =SUM(B10:D10) -> 24000 | F10: =F8+F9 -> 13000 | G10: =G8+G9 -> 16000 | H10: =H8+H9 -> 25000 | I10: =SUM(F10:H10) -> 54000 | J10: =J8+J9 -> 17000 | K10: =K8+K9 -> 18000 | L10: =L8+L9 -> 30000 | M10: =SUM(J10:L10) -> 65000 | N10: =N8+N9 -> 22000 | O10: =O8+O9 -> 29000 | P10: =P8+P9 -> 31000 | Q10: =SUM(N10:P10) -> 82000 | R10: 225000
A11: 銷貨成本 | B11: =B8*0.8 -> 4800 | C11: =C8*0.8 -> 3200 | D11: 6400 | E11: =SUM(B11:D11) -> 14400 | F11: =F8*0.8 -> 8800 | G11: =G8*0.8 -> 11200 | H11: 18400 | I11: =SUM(F11:H11) -> 38400 | J11: =J8*0.8 -> 12000 | K11: =K8*0.8 -> 12800 | L11: 22400 | M11: =SUM(J11:L11) -> 47200 | N11: 16000 | O11: =O8*0.8 -> 21600 | P11: 23200 | Q11: =SUM(N11:P11) -> 60800 | R11: 160800
A12: 維護成本 | B12: 600 | C12: 600 | D12: 600 | E12: =SUM(B12:D12) -> 1800 | F12: 600 | G12: 600 | H12: 600 | I12: =SUM(F12:H12) -> 1800 | J12: 600 | K12: 600 | L12: 600 | M12: =SUM(J12:L12) -> 1800 | N12: 600 | O12: 600 | P12: 600 | Q12: =SUM(N12:P12) -> 1800 | R12: 7200
A13: 營業成本合計 | B13: =B11+B12 -> 5400 | C13: 3800 | D13: 7000 | E13: 16200 | F13: 9400 | G13: 11800 | H13: 19000 | I13: 40200 | J13: 12600 | K13: 13400 | L13: 23000 | M13: 49000 | N13: 16600 | O13: 22200 | P13: 23800 | Q13: 62600 | R13: 168000
A14: 營業毛利 | B14: =B10-B13 -> 2600 | C14: 2200 | D14: 3000 | E14: 7800 | F14: 3600 | G14: 4200 | H14: 6000 | I14: 13800 | J14: 4400 | K14: 4600 | L14: 7000 | M14: 16000 | N14: 5400 | O14: 6800 | P14: 7200 | Q14: 19400 | R14: 57000
A15: 毛利率% | B15: =B14/B10 -> 0.325 | C15: 0.3666666667 | D15: 0.3 | E15: 0.325 | F15: 0.2769230769 | G15: 0.2625 | H15: 0.24 | I15: 0.2555555556 | J15: 0.2588235294 | K15: 0.2555555556 | L15: 0.2333333333 | M15: 0.2461538462 | N15: 0.2454545455 | O15: 0.2344827586 | P15: 0.2322580645 | Q15: 0.2365853659 | R15: 0.2533333333
A16: 管理費用 | R16: =E16+I16+M16+Q16 -> 0
A17: 推銷費用 | B17: 1270 | C17: 1272 | D17: 1373 | E17: =SUM(B17:D17) -> 3915 | F17: 1272 | G17: 1272 | H17: 1373 | I17: =SUM(F17:H17) -> 3917 | J17: 1566 | K17: 1566 | L17: 1666 | M17: =SUM(J17:L17) -> 4798 | N17: 3532 | O17: 3532 | P17: 3652 | Q17: =SUM(N17:P17) -> 10716 | R17: 23346
A18: 研究費用 | R18: 0
A19: 內部轉撥費用 | Q19: =SUM(N19:P19) -> 0 | R19: 0
A20: 內部轉撥毛利 | R20: 0
A21: 分攤管理費用 | B21: 362 | C21: 362 | D21: 362 | E21: =SUM(B21:D21) -> 1086 | F21: 362 | G21: 362 | H21: 362 | I21: =SUM(F21:H21) -> 1086 | J21: 435 | K21: 435 | L21: 435 | M21: =SUM(J21:L21) -> 1305 | N21: 704 | O21: 704 | P21: 715 | Q21: =SUM(N21:P21) -> 2123 | R21: 5600
A22: 分攤推銷費用 | E22: =SUM(B22:D22) -> 0 | I22: =SUM(F22:H22) -> 0 | M22: =SUM(J22:L22) -> 0 | Q22: =SUM(N22:P22) -> 0 | R22: 0
A23: 分攤自身推銷費用 | B23: 629 | C23: 619 | D23: 658 | E23: =SUM(B23:D23) -> 1906 | F23: 619 | G23: 619 | H23: 658 | I23: =SUM(F23:H23) -> 1896 | J23: 914 | K23: 914 | L23: 953 | M23: =SUM(J23:L23) -> 2781 | N23: 1143 | O23: 1143 | P23: 1185 | Q23: =SUM(N23:P23) -> 3471 | R23: 10054
A24: 分攤研究費用 | R24: 0
A25: 分攤自身研究費用 | R25: 0
A26: 分攤費用合計 | B26: =SUM(B21:B25) -> 991 | C26: =SUM(C21:C25) -> 981 | D26: =SUM(D21:D25) -> 1020 | E26: =SUM(B26:D26) -> 2992 | F26: =SUM(F21:F25) -> 981 | G26: =SUM(G21:G25) -> 981 | H26: =SUM(H21:H25) -> 1020 | I26: =SUM(F26:H26) -> 2982 | J26: =SUM(J21:J25) -> 1349 | K26: =SUM(K21:K25) -> 1349 | L26: =SUM(L21:L25) -> 1388 | M26: =SUM(J26:L26) -> 4086 | N26: =SUM(N21:N25) -> 1847 | O26: =SUM(O21:O25) -> 1847 | P26: =SUM(P21:P25) -> 1900 | Q26: =SUM(N26:P26) -> 5594 | R26: 15654
A27: 費用合計 | B27: =SUM(B16:B25) -> 2261 | C27: =SUM(C16:C25) -> 2253 | D27: =SUM(D16:D25) -> 2393 | E27: =SUM(B27:D27) -> 6907 | F27: =SUM(F16:F25) -> 2253 | G27: =SUM(G16:G25) -> 2253 | H27: =SUM(H16:H25) -> 2393 | I27: =SUM(F27:H27) -> 6899 | J27: =SUM(J16:J25) -> 2915 | K27: =SUM(K16:K25) -> 2915 | L27: =SUM(L16:L25) -> 3054 | M27: =SUM(J27:L27) -> 8884 | N27: =SUM(N16:N25) -> 5379 | O27: =SUM(O16:O25) -> 5379 | P27: =SUM(P16:P25) -> 5552 | Q27: =SUM(N27:P27) -> 16310 | R27: 39000
A28: 營業利益 | B28: =B14-B27 -> 339 | C28: =C14-C27 -> -53 | D28: =D14-D27 -> 607 | E28: =SUM(B28:D28) -> 893 | F28: =F14-F27 -> 1347 | G28: =G14-G27 -> 1947 | H28: =H14-H27 -> 3607 | I28: =SUM(F28:H28) -> 6901 | J28: =J14-J27 -> 1485 | K28: =K14-K27 -> 1685 | L28: =L14-L27 -> 3946 | M28: =SUM(J28:L28) -> 7116 | N28: =N14-N27 -> 21 | O28: =O14-O27 -> 1421 | P28: =P14-P27 -> 1648 | Q28: =SUM(N28:P28) -> 3090 | R28: 18000
A29: 營業利益率% | B29: =B28/B10 -> 0.042375 | C29: -0.008833333333 | D29: 0.0607 | E29: 0.03720833333 | F29: 0.1036153846 | G29: 0.1216875 | H29: 0.14428 | I29: 0.1277962963 | J29: 0.08735294118 | K29: 0.09361111111 | L29: 0.1315333333 | M29: 0.1094769231 | N29: 0.0009545454545 | O29: 0.049 | P29: 0.05316129032 | Q29: 0.03768292683 | R29: 0.08
A30: 營業外收支淨額
A31: 營業純利 | B31: =B28+B30 -> 339 | C31: =C28+C30 -> -53 | D31: =D28+D30 -> 607 | E31: =SUM(B31:D31) -> 893 | F31: =F28+F30 -> 1347 | G31: =G28+G30 -> 1947 | H31: =H28+H30 -> 3607 | I31: =SUM(F31:H31) -> 6901 | J31: =J28+J30 -> 1485 | K31: =K28+K30 -> 1685 | L31: =L28+L30 -> 3946 | M31: =SUM(J31:L31) -> 7116 | N31: =N28+N30 -> 21 | O31: =O28+O30 -> 1421 | P31: =P28+P30 -> 1648 | Q31: =SUM(N31:P31) -> 3090 | R31: =E31+I31+M31+Q31 -> 18000
A32: 營業純利率% | B32: =B31/B10 -> 0.042375 | C32: -0.008833333333 | D32: 0.0607 | E32: 0.03720833333 | F32: 0.1036153846 | G32: 0.1216875 | H32: 0.14428 | I32: 0.1277962963 | J32: 0.08735294118 | K32: 0.09361111111 | L32: 0.1315333333 | M32: 0.1094769231 | N32: 0.0009545454545 | O32: 0.049 | P32: 0.05316129032 | Q32: 0.03768292683 | R32: 0.08

Sheet 1H 達標分析
A1: TC111 2012 1H 達標分析
A2: 說明內容 | B2: Revenue | C2: NP/GP | D2: 費用
A3: 責任目標 | B3: ='TC111 2012預算'!E10+'TC111 2012預算'!I10 -> 78000 | C3: ='TC111 2012預算'!E31+'TC111 2012預算'!I31 -> 7794 | D3: ='TC111 2012預算'!E27+'TC111 2012預算'!I27 -> 13806
A4: 1~ 2月份 Actual(A) | B4: =營運實績與預測損益表!B9+營運實績與預測損益表!C9 -> 1445 | C4: =營運實績與預測損益表!B30+營運實績與預測損益表!C30 -> -3060 | D4: =營運實績與預測損益表!B26+營運實績與預測損益表!C26 -> 3559
A5: 3~6月份 Backlog | B5: =銷售內容分析表!Y15+銷售內容分析表!Y27 -> 22346.81144 | C5: =銷售內容分析表!Z15+銷售內容分析表!Z27 -> 5771.480473
A6: 3~6月份Forecast(詳如後敘述) | B6: =銷售內容分析表!Y16+銷售內容分析表!Y28 -> 49511 | C6: =銷售內容分析表!Z16+銷售內容分析表!Z28 -> 8816
A7: 3~6 月Backlog+Forecast合計(F) | B7: =B5+B6 -> 71857.81144 | C7: =C5+C6 -> 14587.48047
A8: 3~6 月份預估費用(E) | C8: =營運實績與預測損益表!D26+營運實績與預測損益表!I26 -> 8378 | D8: =營運實績與預測損益表!D26+營運實績與預測損益表!I26 -> 8378
A9: 預估1H營業績效(A+F-E) | B9: =B4+B7 -> 73302.81144 | C9: =C4+C7-C8+營運實績與預測損益表!R29 -> 3149.480473 | D9: =SUM(D4,D8) -> 11937
A10: 差距(責任目標-預估1H績效) | B10: =B9-B3 -> -4697.18856 | C10: =C9-C3 -> -4644.519527 | D10: =D9-D3 -> -1869
A11: 3~6月份 Pipeline (努力的空間，詳如後敘述) | B11: =Pipeline!T8+Pipeline!T12+Pipeline!T19+Pipeline!T29+Pipeline!T37+Pipeline!T52 -> 86176 | C11: =Pipeline!W8+Pipeline!W12+Pipeline!W19+Pipeline!W29+Pipeline!W37+Pipeline!W52 -> 9865

Sheet 全年達標分析
A1: TC111 2012 全年達標分析
A2: 說明內容 | B2: Revenue | C2: NP/GP | D2: 費用
A3: 責任目標 | B3: ='TC111 2012預算'!R10 -> 225000 | C3: ='TC111 2012預算'!R31 -> 18000 | D3: ='TC111 2012預算'!R27 -> 39000
A4: 1~ 2月份 Actual(A) | B4: =營運實績與預測損益表!B9+營運實績與預測損益表!C9 -> 1445 | C4: =營運實績與預測損益表!B30+營運實績與預測損益表!C30 -> -3060 | D4: =營運實績與預測損益表!B26+營運實績與預測損益表!C26 -> 3559
A5: 3~12月份 Backlog | B5: =銷售內容分析表!Y54 -> 40629.62584 | C5: =銷售內容分析表!Z54 -> 12096.81572
A6: 3~12月份Forecast(詳如後敘述) | B6: =銷售內容分析表!Y55 -> 76810 | C6: =銷售內容分析表!Z55 -> 17364
A7: 3~12 月Backlog+Forecast合計(F) | B7: =B5+B6 -> 117439.6258 | C7: =C5+C6 -> 29460.81572
A8: 3~12 月份預估費用(E) | C8: =營運實績與預測損益表!D26+營運實績與預測損益表!I26+營運實績與預測損益表!M26+營運實績與預測損益表!Q26 -> 35866 | D8: =營運實績與預測損益表!D26+營運實績與預測損益表!I26+營運實績與預測損益表!M26+營運實績與預測損益表!Q26 -> 35866
A9: 預估全年營業績效(A+F-E) | B9: =B4+B7 -> 118884.6258 | C9: =C4+C7-C8+營運實績與預測損益表!R29 -> -9465.184284 | D9: =SUM(D4,D8) -> 39425
A10: 差距(責任目標-預估全年績效) | B10: =B9-B3 -> -106115.3742 | C10: =C9-C3 -> -27465.18428 | D10: =D9-D3 -> 425
A11: 3~12月份 Pipeline (努力的空間，詳如後敘述) | B11: =Pipeline!T95 -> 154836 | C11: =Pipeline!W95 -> 17301

Sheet 營運實績與預測損益表
A2: 部門代碼：
A3: 部門名稱： | B3: 實際正職
A4: 業務人員： | B4: 實際約聘
B5: TC111 Y2012 營運實際與預測 | R5: 單位：NT$ 千元
A6: 會計科目 | B6: 1月-A | C6: 2月-A | D6: 3月-F | E6: Q1-F | F6: 4月-F | G6: 5月-F | H6: 6月-F | I6: Q2-F | J6: 7月-F | K6: 8月-F | L6: 9月-F | M6: Q3-F | N6: 10月-F | O6: 11月-F | P6: 12月-F | Q6: Q4-F | R6: 合計-F
A7: 銷貨收入 | B7: 456 | C7: 11 | D7: =銷售內容分析表!U12+銷售內容分析表!U13 -> 20563.572 | E7: =SUM(B7:D7) -> 21030.572 | F7: =銷售內容分析表!U18+銷售內容分析表!U19 -> 5934 | G7: =銷售內容分析表!U21+銷售內容分析表!U22 -> 8831 | H7: =銷售內容分析表!U24+銷售內容分析表!U25 -> 31802 | I7: =SUM(F7:H7) -> 46567 | J7: =銷售內容分析表!U30+銷售內容分析表!U31 -> 13305 | K7: =銷售內容分析表!U33+銷售內容分析表!U34 -> 4597 | L7: =銷售內容分析表!U36+銷售內容分析表!U37 -> 4174 | M7: =SUM(J7:L7) -> 22076 | N7: =銷售內容分析表!U42+銷售內容分析表!U43 -> 1111 | O7: =銷售內容分析表!U45+銷售內容分析表!U46 -> 4111 | P7: =銷售內容分析表!U48+銷售內容分析表!U49 -> 13073 | Q7: =SUM(N7:P7) -> 18295 | R7: =E7+I7+M7+Q7 -> 107968.572
A8: 維護收入 | B8: 630 | C8: 348 | D8: =銷售內容分析表!W12 -> 1899.610076 | E8: 2877.610076 | F8: =銷售內容分析表!W18 -> 942.5431214 | G8: =銷售內容分析表!W21 -> 942.5431214 | H8: =銷售內容分析表!W24 -> 942.5431214 | I8: =SUM(F8:H8) -> 2827.629364 | J8: =銷售內容分析表!W30 -> 942.5431214 | K8: =銷售內容分析表!W33 -> 942.5431214 | L8: =銷售內容分析表!W36 -> 831.432038 | M8: 2716.518281 | N8: =銷售內容分析表!W42 -> 831.432038 | O8: =銷售內容分析表!W48 -> 831.432038 | P8: =銷售內容分析表!W48 -> 831.432038 | Q8: 2494.296114 | R8: 10916.05384
A9: 營業收入合計(F&A) | B9: =SUM(B7:B8) -> 1086 | C9: =SUM(C7:C8) -> 359 | D9: =SUM(D7:D8) -> 22463.18208 | E9: 23908.18208 | F9: =SUM(F7:F8) -> 6876.543121 | G9: =SUM(G7:G8) -> 9773.543121 | H9: =SUM(H7:H8) -> 32744.54312 | I9: =SUM(F9:H9) -> 49394.62936 | J9: =SUM(J7:J8) -> 14247.54312 | K9: =SUM(K7:K8) -> 5539.543121 | L9: =SUM(L7:L8) -> 5005.432038 | M9: 24792.51828 | N9: =SUM(N7:N8) -> 1942.432038 | O9: =SUM(O7:O8) -> 4942.432038 | P9: =SUM(P7:P8) -> 13904.43204 | Q9: 20789.29611 | R9: 118884.6258
A10: 銷貨成本 | B10: 486 | C10: -32 | D10: =銷售內容分析表!U12+銷售內容分析表!U13-銷售內容分析表!V12-銷售內容分析表!V13 -> 17273.8158 | E10: 17727.8158 | F10: =銷售內容分析表!U18+銷售內容分析表!U19-銷售內容分析表!V18-銷售內容分析表!V19 -> 3716 | G10: =銷售內容分析表!U21+銷售內容分析表!U22-銷售內容分析表!V21-銷售內容分析表!V22 -> 7431 | H10: =銷售內容分析表!U24+銷售內容分析表!U25-銷售內容分析表!V24-銷售內容分析表!V25 -> 26449 | I10: =SUM(F10:H10) -> 37596 | J10: =銷售內容分析表!U30+銷售內容分析表!U31-銷售內容分析表!V30-銷售內容分析表!V31 -> 9760 | K10: =銷售內容分析表!U33+銷售內容分析表!U34-銷售內容分析表!V33-銷售內容分析表!V34 -> 2905 | L10: =銷售內容分析表!U36+銷售內容分析表!U37-銷售內容分析表!V36-銷售內容分析表!V37 -> 3162 | M10: 15827 | N10: =銷售內容分析表!U42+銷售內容分析表!U43-銷售內容分析表!V42-銷售內容分析表!V43 -> 555 | O10: =銷售內容分析表!U45+銷售內容分析表!U46-銷售內容分析表!V45-銷售內容分析表!V46 -> 3105 | P10: =銷售內容分析表!U48+銷售內容分析表!U49-銷售內容分析表!V48-銷售內容分析表!V49 -> 8552 | Q10: 12212 | R10: 83362.8158
A11: 維護成本 | B11: 330 | C11: 163 | D11: =銷售內容分析表!W12-銷售內容分析表!X12 -> 908.8089251 | E11: 1401.808925 | F11: =銷售內容分析表!W18-銷售內容分析表!X18 -> 497.2354142 | G11: =銷售內容分析表!W21-銷售內容分析表!X21 -> 497.2354142 | H11: =銷售內容分析表!W24-銷售內容分析表!X24 -> 497.2354142 | I11: =F11+G11+H11 -> 1491.706243 | J11: =銷售內容分析表!W30-銷售內容分析表!X30 -> 497.2354142 | K11: =銷售內容分析表!W33-銷售內容分析表!X33 -> 497.2354142 | L11: =銷售內容分析表!W36-銷售內容分析表!X36 -> 418.7520809 | M11: 1413.222909 | N11: =銷售內容分析表!W42-銷售內容分析表!X42 -> 418.7520809 | O11: =銷售內容分析表!W45-銷售內容分析表!X45 -> 418.7520809 | P11: =銷售內容分析表!W48-銷售內容分析表!X48 -> 418.7520809 | Q11: 1256.256243 | R11: 5562.99432
A12: 營業成本合計(F&A) | B12: =SUM(B10:B11) -> 816 | C12: =SUM(C10:C11) -> 131 | D12: =SUM(D10:D11) -> 18182.62473 | E12: 19129.62473 | F12: =SUM(F10:F11) -> 4213.235414 | G12: =SUM(G10:G11) -> 7928.235414 | H12: =SUM(H10:H11) -> 26946.23541 | I12: =SUM(F12:H12) -> 39087.70624 | J12: =SUM(J10:J11) -> 10257.23541 | K12: =SUM(K10:K11) -> 3402.235414 | L12: =SUM(L10:L11) -> 3580.752081 | M12: 17240.22291 | N12: =SUM(N10:N11) -> 973.7520809 | O12: =SUM(O10:O11) -> 3523.752081 | P12: =SUM(P10:P11) -> 8970.752081 | Q12: 13468.25624 | R12: 88925.81012
A13: 營業毛利(F&A) | B13: =SUM(B9-B12) -> 270 | C13: 228 | D13: 4280.557351 | E13: 4778.557351 | F13: 2663.307707 | G13: 1845.307707 | H13: =SUM(H9-H12) -> 5798.307707 | I13: 10306.92312 | J13: 3990.307707 | K13: 2137.307707 | L13: 1424.679957 | M13: 7552.295372 | N13: 968.6799572 | O13: 1418.679957 | P13: 4933.679957 | Q13: 7321.039872 | R13: =R9-R12 -> 29958.81572
A14: 毛利率% | B14: =SUM(B13/B9) -> 0.2486187845 | C14: =SUM(C13/C9) -> 0.635097493 | D14: 0.1905588147 | E14: 0.199871213 | F14: 0.3873032802 | G14: 0.188806422 | H14: 0.1770770686 | I14: 0.2086648539 | J14: 0.280069881 | K14: 0.3858274338 | L14: 0.2846267707 | M14: 0.3046199376 | N14: 0.4986943884 | O14: 0.2870408629 | P14: 0.3548278667 | Q14: 0.3521542928 | R14: 0.2519990748
A15: 管理費用
A16: 推銷費用 | B16: 965 | C16: 984 | D16: 1800 | E16: =SUM(B16:D16) -> 3749 | F16: 1800 | G16: 1800 | H16: 1800 | I16: =SUM(F16:H16) -> 5400 | J16: 2100 | K16: 2100 | L16: 2100 | M16: =SUM(J16:L16) -> 6300 | N16: 4000 | O16: 4000 | P16: 4000 | Q16: =N16+O16+P16 -> 12000 | R16: =E16+I16+M16+Q16 -> 27449
A17: 研究費用
A18: 內部轉撥費用 | B18: 30
A19: 內部轉撥毛利 | D19: -2670
A20: 分攤管理費用 | B20: 362 | C20: 362 | D20: 362 | E20: =SUM(B20:D20) -> 1086 | F20: 362 | G20: 362 | H20: 362 | I20: =SUM(F20:H20) -> 1086 | J20: 435 | K20: 435 | L20: 435 | M20: =SUM(J20:L20) -> 1305 | N20: 704 | O20: 704 | P20: 715 | Q20: =SUM(N20:P20) -> 2123 | R20: =E20+I20+M20+Q20 -> 5600
A21: 分攤推銷費用
A22: 分攤自身推銷費用 | B22: 446 | C22: 410 | D22: 600 | E22: 1456 | F22: 600 | G22: 600 | H22: 600 | I22: 1800 | J22: 820 | K22: 820 | L22: 820 | M22: 2460 | N22: 1100 | O22: 1100 | P22: 1100 | Q22: 3300 | R22: 9016
A23: 分攤研究費用
A24: 分攤自身研究費用
A25: 分攤費用合計 | B25: =SUM(B20:B24) -> 808 | C25: =SUM(C20:C24) -> 772 | D25: =SUM(D20:D24) -> 962 | E25: 2542 | F25: =SUM(F20:F24) -> 962 | G25: =SUM(G20:G24) -> 962 | H25: =SUM(H20:H24) -> 962 | I25: 2886 | J25: =SUM(J20:J24) -> 1255 | K25: =SUM(K20:K24) -> 1255 | L25: =SUM(L20:L24) -> 1255 | M25: 3765 | N25: =SUM(N20:N24) -> 1804 | O25: =SUM(O20:O24) -> 1804 | P25: =SUM(P20:P24) -> 1815 | Q25: 5423 | R25: =SUM(R20:R24) -> 14616
A26: 費用合計 | B26: =SUM(B15:B24) -> 1803 | C26: =SUM(C15:C24) -> 1756 | D26: =SUM(D15:D24) -> 92 | E26: =SUM(B26:D26) -> 3651 | F26: =SUM(F15:F24) -> 2762 | G26: =SUM(G15:G24) -> 2762 | H26: =SUM(H15:H24) -> 2762 | I26: =SUM(F26:H26) -> 8286 | J26: =SUM(J15:J24) -> 3355 | K26: =SUM(K15:K24) -> 3355 | L26: =SUM(L15:L24) -> 3355 | M26: =SUM(J26:L26) -> 10065 | N26: =SUM(N15:N24) -> 5804 | O26: =SUM(O15:O24) -> 5804 | P26: =SUM(P15:P24) -> 5815 | Q26: =SUM(N26:P26) -> 17423 | R26: =SUM(R15:R24) -> 42065
A27: 營業利益 | B27: =SUM(B13-B26) -> -1533 | C27: =SUM(C13-C26) -> -1528 | D27: 4188.557351 | E27: 1127.557351 | F27: -98.69229283 | G27: -916.6922928 | H27: 3036.307707 | I27: 2020.923122 | J27: 635.3077072 | K27: -1217.692293 | L27: -1930.320043 | M27: -2512.704628 | N27: -4835.320043 | O27: -4385.320043 | P27: -881.3200428 | Q27: -10101.96013 | R27: =SUM(E27,I27,M27,Q27) -> -9466.184284
A28: 營業利益率% | B28: =SUM(B27/B9) -> -1.41160221 | C28: =SUM(C27/C9) -> -4.256267409 | D28: =SUM(D27/D9) -> 0.186463224 | E28: =SUM(E27/E9) -> 0.04716198611 | F28: =SUM(F27/F9) -> -0.01435202122 | G28: =SUM(G27/G9) -> -0.09379324176 | H28: =SUM(H27/H9) -> 0.09272713612 | I28: 0.04091382297 | J28: 0.04459068499 | K28: =SUM(K27/K9) -> -0.2198181811 | L28: =SUM(L27/L9) -> -0.3856450409 | M28: -0.1013493103 | N28: -2.48931234 | O28: =SUM(O27/O9) -> -0.8872797864 | P28: =SUM(P27/P9) -> -0.0633841095 | Q28: -0.4859212199 | R28: -0.07962496595
A29: 營業外收支淨額 | B29: 1
A30: 營業純利 | B30: =SUM(B27,B29) -> -1532 | C30: =SUM(C27,C29) -> -1528 | D30: 4188.557351 | E30: 1127.557351 | F30: -98.69229283 | G30: -916.6922928 | H30: 3036.307707 | I30: 2020.923122 | J30: 635.3077072 | K30: -1217.692293 | L30: -1930.320043 | M30: -2512.704628 | N30: -4835.320043 | O30: -4385.320043 | P30: -881.3200428 | Q30: -10101.96013 | R30: -9466.184284
A31: 營業純利率% | B31: =SUM(B30/B9) -> -1.4106814 | C31: -4.256267409 | D31: 0.186463224 | E31: 0.04716198611 | F31: -0.01435202122 | G31: -0.09379324176 | H31: 0.09272713612 | I31: 0.04091382297 | J31: 0.04459068499 | K31: -0.2198181811 | L31: -0.3856450409 | M31: -0.1013493103 | N31: -2.48931234 | O31: -0.8872797864 | P31: -0.0633841095 | Q31: -0.4859212199 | R31: -0.07962496595

Sheet 銷售內容分析表
A1: TC112 - 2011 Actual & Backlog & Forecast Sales OPS Analysis
A2: OPS | C2: PCS | E2: HIS | M2: PACS | U2: IT Infrastructure. | Y2: Total
C3: S/W&MA | D3: GP | E3: S/W Sales | G3: H/W Sales | I3: S/W mnt | K3: H/W mnt | M3: S/W Sales | O3: H/W Sales | Q3: S/W mnt | S3: H/W mnt | U3: IT Sales | W3: IT mnt
A4: 月 | B4: 內容 | C4: Sales | D4: G.P | E4: Sales | F4: G.P | G4: Sales | H4: G.P | I4: Sales | J4: G.P | K4: Sales | L4: G.P | M4: Sales | N4: G.P | O4: Sales | P4: G.P | Q4: Sales | R4: G.P | S4: Sales | T4: G.P | U4: Sales | V4: G.P | W4: Sales | X4: G.P | Y4: Sales | Z4: G.P
A5: 1 | B5: Actual | C5: 0 | D5: 0 | E5: 0 | F5: 0 | G5: 0 | H5: 0 | I5: 0 | J5: 0 | K5: 0 | L5: 0 | M5: 0 | N5: 0 | O5: 0 | P5: 0 | Q5: 0 | R5: 0 | S5: 0 | T5: 0 | U5: =營運實績與預測損益表!B7 -> 456 | V5: =營運實績與預測損益表!B7-營運實績與預測損益表!B10 -> -30 | W5: =營運實績與預測損益表!B8 -> 630 | X5: =營運實績與預測損益表!B8-營運實績與預測損益表!B11 -> 300 | Y5: =C5+E5+G5+I5+K5+M5+O5+Q5+S5+U5+W5 -> 1086 | Z5: =D5+F5+H5+J5+L5+N5+P5+R5+T5+V5+X5 -> 270
B6: Backlog | C6: 0 | D6: 0 | E6: 0 | F6: 0 | G6: 0 | H6: 0 | I6: 0 | J6: 0 | K6: 0 | L6: 0 | M6: 0 | N6: 0 | O6: 0 | P6: 0 | Q6: 0 | R6: 0 | S6: 0 | T6: 0 | Y6: 0 | Z6: 0
B7: Forecast | C7: 0 | D7: 0 | E7: 0 | F7: 0 | G7: 0 | H7: 0 | I7: 0 | J7: 0 | K7: 0 | L7: 0 | M7: 0 | N7: 0 | O7: 0 | P7: 0 | Q7: 0 | R7: 0 | S7: 0 | T7: 0 | Y7: 0 | Z7: 0
A8: 2 | B8: Actual | C8: 0 | D8: 0 | E8: 0 | F8: 0 | G8: 0 | H8: 0 | I8: 0 | J8: 0 | K8: 0 | L8: 0 | M8: 0 | N8: 0 | O8: 0 | P8: 0 | Q8: 0 | R8: 0 | S8: 0 | T8: 0 | U8: =營運實績與預測損益表!C7 -> 11 | V8: =營運實績與預測損益表!C7-營運實績與預測損益表!C10 -> 43 | W8: =營運實績與預測損益表!C8 -> 348 | X8: =營運實績與預測損益表!C8-營運實績與預測損益表!C11 -> 185 | Y8: 359 | Z8: 228
B9: Backlog | C9: 0 | D9: 0 | E9: 0 | F9: 0 | G9: 0 | H9: 0 | I9: 0 | J9: 0 | K9: 0 | L9: 0 | M9: 0 | N9: 0 | O9: 0 | P9: 0 | Q9: 0 | R9: 0 | S9: 0 | T9: 0 | Y9: 0 | Z9: 0
B10: Forecast | C10: 0 | D10: 0 | E10: 0 | F10: 0 | G10: 0 | H10: 0 | I10: 0 | J10: 0 | K10: 0 | L10: 0 | M10: 0 | N10: 0 | O10: 0 | P10: 0 | Q10: 0 | R10: 0 | S10: 0 | T10: 0 | Y10: 0 | Z10: 0
A11: 3 | B11: Actual | C11: 0 | D11: 0 | E11: 0 | F11: 0 | G11: 0 | H11: 0 | I11: 0 | J11: 0 | K11: 0 | L11: 0 | M11: 0 | N11: 0 | O11: 0 | P11: 0 | Q11: 0 | R11: 0 | S11: 0 | T11: 0 | Y11: 0 | Z11: 0
B12: Backlog | C12: 0 | D12: 0 | E12: 0 | F12: 0 | G12: 0 | H12: 0 | I12: 0 | J12: 0 | K12: 0 | L12: 0 | M12: 0 | N12: 0 | O12: 0 | P12: 0 | Q12: 0 | R12: 0 | S12: 0 | T12: 0 | U12: =銷售Backlog!T25 -> 15148.572 | V12: =銷售Backlog!W25 -> 1141.7562 | W12: =維護Backlog!S37 -> 1899.610076 | X12: =維護Backlog!V37 -> 990.801151 | Y12: 17048.18208 | Z12: 2132.557351
B13: Forecast | C13: 0 | D13: 0 | E13: 0 | F13: 0 | G13: 0 | H13: 0 | I13: 0 | J13: 0 | K13: 0 | L13: 0 | M13: 0 | N13: 0 | O13: 0 | P13: 0 | Q13: 0 | R13: 0 | S13: 0 | T13: 0 | U13: =Forecast!T26 -> 5415 | V13: =Forecast!W26 -> 2148 | Y13: 5415 | Z13: 2148
A14: Q1 | B14: Actual | C14: =C5+C8+C11 -> 0 | D14: 0 | E14: 0 | F14: 0 | G14: 0 | H14: 0 | I14: 0 | J14: 0 | K14: 0 | L14: 0 | M14: 0 | N14: 0 | O14: 0 | P14: 0 | Q14: 0 | R14: 0 | S14: 0 | T14: 0 | U14: 467 | V14: 13 | W14: 978 | X14: 485 | Y14: 1445 | Z14: 498
B15: Backlog | C15: =C6+C9+C12 -> 0 | D15: 0 | E15: 0 | F15: 0 | G15: 0 | H15: 0 | I15: 0 | J15: 0 | K15: 0 | L15: 0 | M15: 0 | N15: 0 | O15: 0 | P15: 0 | Q15: 0 | R15: 0 | S15: 0 | T15: 0 | U15: 15148.572 | V15: 1141.7562 | W15: 1899.610076 | X15: 990.801151 | Y15: 17048.18208 | Z15: 2132.557351
B16: Forecast | C16: =C7+C10+C13 -> 0 | D16: 0 | E16: 0 | F16: 0 | G16: 0 | H16: 0 | I16: 0 | J16: 0 | K16: 0 | L16: 0 | M16: 0 | N16: 0 | O16: 0 | P16: 0 | Q16: 0 | R16: 0 | S16: 0 | T16: 0 | U16: 5415 | V16: 2148 | W16: 0 | X16: 0 | Y16: 5415 | Z16: 2148
A17: 4 | B17: Actual | C17: 0 | D17: 0 | E17: 0 | F17: 0 | G17: 0 | H17: 0 | I17: 0 | J17: 0 | K17: 0 | L17: 0 | M17: 0 | N17: 0 | O17: 0 | P17: 0 | Q17: 0 | R17: 0 | S17: 0 | T17: 0 | Y17: =C17+E17+G17+I17+K17+M17+O17+Q17+S17+U17+W17 -> 0 | Z17: =D17+F17+H17+J17+L17+N17+P17+R17+T17+V17+X17 -> 0
B18: Backlog | C18: 0 | D18: 0 | E18: 0 | F18: 0 | G18: 0 | H18: 0 | I18: 0 | J18: 0 | K18: 0 | L18: 0 | M18: 0 | N18: 0 | O18: 0 | P18: 0 | Q18: 0 | R18: 0 | S18: 0 | T18: 0 | U18: =銷售Backlog!T34 -> 1463 | V18: =銷售Backlog!W34 -> 1326 | W18: =維護Backlog!S47 -> 942.5431214 | X18: =維護Backlog!V47 -> 445.3077072 | Y18: 2405.543121 | Z18: 1771.307707
B19: Forecast | C19: 0 | D19: 0 | E19: 0 | F19: 0 | G19: 0 | H19: 0 | I19: 0 | J19: 0 | K19: 0 | L19: 0 | M19: 0 | N19: 0 | O19: 0 | P19: 0 | Q19: 0 | R19: 0 | S19: 0 | T19: 0 | U19: =Forecast!T33 -> 4471 | V19: =Forecast!W33 -> 892 | Y19: 4471 | Z19: 892
A20: 5 | B20: Actual | C20: 0 | D20: 0 | E20: 0 | F20: 0 | G20: 0 | H20: 0 | I20: 0 | J20: 0 | K20: 0 | L20: 0 | M20: 0 | N20: 0 | O20: 0 | P20: 0 | Q20: 0 | R20: 0 | S20: 0 | T20: 0 | Y20: 0 | Z20: 0
B21: Backlog | C21: 0 | D21: 0 | E21: 0 | F21: 0 | G21: 0 | H21: 0 | I21: 0 | J21: 0 | K21: 0 | L21: 0 | M21: 0 | N21: 0 | O21: 0 | P21: 0 | Q21: 0 | R21: 0 | S21: 0 | T21: 0 | U21: =銷售Backlog!T42 -> 0 | V21: =銷售Backlog!W42 -> 0 | W21: =維護Backlog!S57 -> 942.5431214 | X21: =維護Backlog!V57 -> 445.3077072 | Y21: 942.5431214 | Z21: 445.3077072
B22: Forecast | C22: 0 | D22: 0 | E22: 0 | F22: 0 | G22: 0 | H22: 0 | I22: 0 | J22: 0 | K22: 0 | L22: 0 | M22: 0 | N22: 0 | O22: 0 | P22: 0 | Q22: 0 | R22: 0 | S22: 0 | T22: 0 | U22: =Forecast!T39 -> 8831 | V22: =Forecast!W39 -> 1400 | Y22: =C22+E22+G22+I22+K22+M22+O22+Q22+S22+U22+W22 -> 8831 | Z22: =D22+F22+H22+J22+L22+N22+P22+R22+T22+V22+X22 -> 1400
A23: 6 | B23: Actual | C23: 0 | D23: 0 | E23: 0 | F23: 0 | G23: 0 | H23: 0 | I23: 0 | J23: 0 | K23: 0 | L23: 0 | M23: 0 | N23: 0 | O23: 0 | P23: 0 | Q23: 0 | R23: 0 | S23: 0 | T23: 0 | Y23: 0 | Z23: 0
B24: Backlog | C24: 0 | D24: 0 | E24: 0 | F24: 0 | G24: 0 | H24: 0 | I24: 0 | J24: 0 | K24: 0 | L24: 0 | M24: 0 | N24: 0 | O24: 0 | P24: 0 | Q24: 0 | R24: 0 | S24: 0 | T24: 0 | U24: =銷售Backlog!T49 -> 1008 | V24: =銷售Backlog!W49 -> 977 | W24: =維護Backlog!S66 -> 942.5431214 | X24: =維護Backlog!V66 -> 445.3077072 | Y24: 1950.543121 | Z24: 1422.307707
B25: Forecast | C25: 0 | D25: 0 | E25: 0 | F25: 0 | G25: 0 | H25: 0 | I25: 0 | J25: 0 | K25: 0 | L25: 0 | M25: 0 | N25: 0 | O25: 0 | P25: 0 | Q25: 0 | R25: 0 | S25: 0 | T25: 0 | U25: =Forecast!T50 -> 30794 | V25: =Forecast!W50 -> 4376 | Y25: 30794 | Z25: 4376
A26: Q2 | B26: Actual | C26: =C17+C20+C23 -> 0 | D26: 0 | E26: 0 | F26: 0 | G26: 0 | H26: 0 | I26: 0 | J26: 0 | K26: 0 | L26: 0 | M26: 0 | N26: 0 | O26: 0 | P26: 0 | Q26: 0 | R26: 0 | S26: 0 | T26: 0 | U26: 0 | V26: 0 | W26: 0 | X26: 0 | Y26: 0 | Z26: 0
B27: Backlog | C27: =C18+C21+C24 -> 0 | D27: 0 | E27: 0 | F27: 0 | G27: 0 | H27: 0 | I27: 0 | J27: 0 | K27: 0 | L27: 0 | M27: 0 | N27: 0 | O27: 0 | P27: 0 | Q27: 0 | R27: 0 | S27: 0 | T27: 0 | U27: 2471 | V27: 2303 | W27: 2827.629364 | X27: 1335.923122 | Y27: 5298.629364 | Z27: 3638.923122
B28: Forecast | C28: =C19+C22+C25 -> 0 | D28: 0 | E28: 0 | F28: 0 | G28: 0 | H28: 0 | I28: 0 | J28: 0 | K28: 0 | L28: 0 | M28: 0 | N28: 0 | O28: 0 | P28: 0 | Q28: 0 | R28: 0 | S28: 0 | T28: 0 | U28: 44096 | V28: 6668 | W28: 0 | X28: 0 | Y28: 44096 | Z28: 6668
A29: 7 | B29: Actual | C29: 0 | D29: 0 | E29: 0 | F29: 0 | G29: 0 | H29: 0 | I29: 0 | J29: 0 | K29: 0 | L29: 0 | M29: 0 | N29: 0 | O29: 0 | P29: 0 | Q29: 0 | R29: 0 | S29: 0 | T29: 0 | Y29: =C29+E29+G29+I29+K29+M29+O29+Q29+S29+U29+W29 -> 0 | Z29: =D29+F29+H29+J29+L29+N29+P29+R29+T29+V29+X29 -> 0
B30: Backlog | C30: 0 | D30: 0 | E30: 0 | F30: 0 | G30: 0 | H30: 0 | I30: 0 | J30: 0 | K30: 0 | L30: 0 | M30: 0 | N30: 0 | O30: 0 | P30: 0 | Q30: 0 | R30: 0 | S30: 0 | T30: 0 | U30: =銷售Backlog!T56 -> 12194 | V30: =銷售Backlog!W56 -> 2989 | W30: =維護Backlog!S77 -> 942.5431214 | X30: =維護Backlog!V77 -> 445.3077072 | Y30: 13136.54312 | Z30: 3434.307707
B31: Forecast | C31: 0 | D31: 0 | E31: 0 | F31: 0 | G31: 0 | H31: 0 | I31: 0 | J31: 0 | K31: 0 | L31: 0 | M31: 0 | N31: 0 | O31: 0 | P31: 0 | Q31: 0 | R31: 0 | S31: 0 | T31: 0 | U31: =Forecast!T55 -> 1111 | V31: =Forecast!W55 -> 556 | Y31: 1111 | Z31: 556
A32: 8 | B32: Actual | C32: 0 | D32: 0 | E32: 0 | F32: 0 | G32: 0 | H32: 0 | I32: 0 | J32: 0 | K32: 0 | L32: 0 | M32: 0 | N32: 0 | O32: 0 | P32: 0 | Q32: 0 | R32: 0 | S32: 0 | T32: 0 | Y32: 0 | Z32: 0
B33: Backlog | C33: 0 | D33: 0 | E33: 0 | F33: 0 | G33: 0 | H33: 0 | I33: 0 | J33: 0 | K33: 0 | L33: 0 | M33: 0 | N33: 0 | O33: 0 | P33: 0 | Q33: 0 | R33: 0 | S33: 0 | T33: 0 | U33: =銷售Backlog!T63 -> 0 | V33: =銷售Backlog!W63 -> 0 | W33: =維護Backlog!S87 -> 942.5431214 | X33: =維護Backlog!V87 -> 445.3077072 | Y33: 942.5431214 | Z33: 445.3077072
B34: Forecast | C34: 0 | D34: 0 | E34: 0 | F34: 0 | G34: 0 | H34: 0 | I34: 0 | J34: 0 | K34: 0 | L34: 0 | M34: 0 | N34: 0 | O34: 0 | P34: 0 | Q34: 0 | R34: 0 | S34: 0 | T34: 0 | U34: =Forecast!T62 -> 4597 | V34: =Forecast!W62 -> 1692 | Y34: 4597 | Z34: 1692
A35: 9 | B35: Actual | C35: 0 | D35: 0 | E35: 0 | F35: 0 | G35: 0 | H35: 0 | I35: 0 | J35: 0 | K35: 0 | L35: 0 | M35: 0 | N35: 0 | O35: 0 | P35: 0 | Q35: 0 | R35: 0 | S35: 0 | T35: 0 | Y35: 0 | Z35: 0
B36: Backlog | C36: 0 | D36: 0 | E36: 0 | F36: 0 | G36: 0 | H36: 0 | I36: 0 | J36: 0 | K36: 0 | L36: 0 | M36: 0 | N36: 0 | O36: 0 | P36: 0 | Q36: 0 | R36: 0 | S36: 0 | T36: 0 | U36: =銷售Backlog!T71 -> 0 | V36: =銷售Backlog!W71 -> 0 | W36: =維護Backlog!S96 -> 831.432038 | X36: =維護Backlog!V96 -> 412.6799572 | Y36: 831.432038 | Z36: 412.6799572
B37: Forecast | C37: 0 | D37: 0 | E37: 0 | F37: 0 | G37: 0 | H37: 0 | I37: 0 | J37: 0 | K37: 0 | L37: 0 | M37: 0 | N37: 0 | O37: 0 | P37: 0 | Q37: 0 | R37: 0 | S37: 0 | T37: 0 | U37: =Forecast!T68 -> 4174 | V37: =Forecast!W68 -> 1012 | Y37: 4174 | Z37: 1012
A38: Q3 | B38: Actual | C38: =C29+C32+C35 -> 0 | D38: 0 | E38: 0 | F38: 0 | G38: 0 | H38: 0 | I38: 0 | J38: 0 | K38: 0 | L38: 0 | M38: 0 | N38: 0 | O38: 0 | P38: 0 | Q38: 0 | R38: 0 | S38: 0 | T38: 0 | U38: 0 | V38: 0 | W38: 0 | X38: 0 | Y38: 0 | Z38: 0
B39: Backlog | C39: =C30+C33+C36 -> 0 | D39: 0 | E39: 0 | F39: 0 | G39: 0 | H39: 0 | I39: 0 | J39: 0 | K39: 0 | L39: 0 | M39: 0 | N39: 0 | O39: 0 | P39: 0 | Q39: 0 | R39: 0 | S39: 0 | T39: 0 | U39: 12194 | V39: 2989 | W39: 2716.518281 | X39: 1303.295372 | Y39: 14910.51828 | Z39: 4292.295372
B40: Forecast | C40: =C31+C34+C37 -> 0 | D40: 0 | E40: 0 | F40: 0 | G40: 0 | H40: 0 | I40: 0 | J40: 0 | K40: 0 | L40: 0 | M40: 0 | N40: 0 | O40: 0 | P40: 0 | Q40: 0 | R40: 0 | S40: 0 | T40: 0 | U40: 9882 | V40: 3260 | W40: 0 | X40: 0 | Y40: 9882 | Z40: 3260
A41: 10 | B41: Actual | C41: 0 | D41: 0 | E41: 0 | F41: 0 | G41: 0 | H41: 0 | I41: 0 | J41: 0 | K41: 0 | L41: 0 | M41: 0 | N41: 0 | O41: 0 | P41: 0 | Q41: 0 | R41: 0 | S41: 0 | T41: 0 | Y41: =C41+E41+G41+I41+K41+M41+O41+Q41+S41+U41+W41 -> 0 | Z41: =D41+F41+H41+J41+L41+N41+P41+R41+T41+V41+X41 -> 0
B42: Backlog | C42: 0 | D42: 0 | E42: 0 | F42: 0 | G42: 0 | H42: 0 | I42: 0 | J42: 0 | K42: 0 | L42: 0 | M42: 0 | N42: 0 | O42: 0 | P42: 0 | Q42: 0 | R42: 0 | S42: 0 | T42: 0 | U42: =銷售Backlog!T79 -> 0 | V42: =銷售Backlog!W79 -> 0 | W42: =維護Backlog!S105 -> 831.432038 | X42: =維護Backlog!V105 -> 412.6799572 | Y42: 831.432038 | Z42: 412.6799572
B43: Forecast | C43: 0 | D43: 0 | E43: 0 | F43: 0 | G43: 0 | H43: 0 | I43: 0 | J43: 0 | K43: 0 | L43: 0 | M43: 0 | N43: 0 | O43: 0 | P43: 0 | Q43: 0 | R43: 0 | S43: 0 | T43: 0 | U43: =Forecast!T74 -> 1111 | V43: =Forecast!W74 -> 556 | Y43: 1111 | Z43: 556
A44: 11 | B44: Actual | C44: 0 | D44: 0 | E44: 0 | F44: 0 | G44: 0 | H44: 0 | I44: 0 | J44: 0 | K44: 0 | L44: 0 | M44: 0 | N44: 0 | O44: 0 | P44: 0 | Q44: 0 | R44: 0 | S44: 0 | T44: 0 | Y44: 0 | Z44: 0
B45: Backlog | C45: 0 | D45: 0 | E45: 0 | F45: 0 | G45: 0 | H45: 0 | I45: 0 | J45: 0 | K45: 0 | L45: 0 | M45: 0 | N45: 0 | O45: 0 | P45: 0 | Q45: 0 | R45: 0 | S45: 0 | T45: 0 | U45: =銷售Backlog!T87 -> 0 | V45: =銷售Backlog!W87 -> 0 | W45: =維護Backlog!S115 -> 831.432038 | X45: =維護Backlog!V115 -> 412.6799572 | Y45: 831.432038 | Z45: 412.6799572
B46: Forecast | C46: 0 | D46: 0 | E46: 0 | F46: 0 | G46: 0 | H46: 0 | I46: 0 | J46: 0 | K46: 0 | L46: 0 | M46: 0 | N46: 0 | O46: 0 | P46: 0 | Q46: 0 | R46: 0 | S46: 0 | T46: 0 | U46: =Forecast!T79 -> 4111 | V46: =Forecast!W79 -> 1006 | Y46: 4111 | Z46: 1006
A47: 12 | B47: Actual | C47: 0 | D47: 0 | E47: 0 | F47: 0 | G47: 0 | H47: 0 | I47: 0 | J47: 0 | K47: 0 | L47: 0 | M47: 0 | N47: 0 | O47: 0 | P47: 0 | Q47: 0 | R47: 0 | S47: 0 | T47: 0 | Y47: 0 | Z47: 0
B48: Backlog | C48: 0 | D48: 0 | E48: 0 | F48: 0 | G48: 0 | H48: 0 | I48: 0 | J48: 0 | K48: 0 | L48: 0 | M48: 0 | N48: 0 | O48: 0 | P48: 0 | Q48: 0 | R48: 0 | S48: 0 | T48: 0 | U48: =銷售Backlog!T95 -> 878 | V48: =銷售Backlog!W95 -> 795 | W48: =維護Backlog!S124 -> 831.432038 | X48: =維護Backlog!V124 -> 412.6799572 | Y48: 1709.432038 | Z48: 1207.679957
B49: Forecast | C49: 0 | D49: 0 | E49: 0 | F49: 0 | G49: 0 | H49: 0 | I49: 0 | J49: 0 | K49: 0 | L49: 0 | M49: 0 | N49: 0 | O49: 0 | P49: 0 | Q49: 0 | R49: 0 | S49: 0 | T49: 0 | U49: =Forecast!T88 -> 12195 | V49: =Forecast!W88 -> 3726 | Y49: 12195 | Z49: 3726
A50: Q4 | B50: Actual | C50: =C41+C44+C47 -> 0 | D50: 0 | E50: 0 | F50: 0 | G50: 0 | H50: 0 | I50: 0 | J50: 0 | K50: 0 | L50: 0 | M50: 0 | N50: 0 | O50: 0 | P50: 0 | Q50: 0 | R50: 0 | S50: 0 | T50: 0 | U50: 0 | V50: 0 | W50: 0 | X50: 0 | Y50: 0 | Z50: 0
B51: Backlog | C51: =C42+C45+C48 -> 0 | D51: 0 | E51: 0 | F51: 0 | G51: 0 | H51: 0 | I51: 0 | J51: 0 | K51: 0 | L51: 0 | M51: 0 | N51: 0 | O51: 0 | P51: 0 | Q51: 0 | R51: 0 | S51: 0 | T51: 0 | U51: 878 | V51: 795 | W51: 2494.296114 | X51: 1238.039872 | Y51: 3372.296114 | Z51: 2033.039872
B52: Forecast | C52: =C43+C46+C49 -> 0 | D52: 0 | E52: 0 | F52: 0 | G52: 0 | H52: 0 | I52: 0 | J52: 0 | K52: 0 | L52: 0 | M52: 0 | N52: 0 | O52: 0 | P52: 0 | Q52: 0 | R52: 0 | S52: 0 | T52: 0 | U52: 17417 | V52: 5288 | W52: 0 | X52: 0 | Y52: 17417 | Z52: 5288
A53: 合計(YTYE) | B53: Actual | C53: =C14+C26+C38+C50 -> 0 | D53: 0 | E53: 0 | F53: 0 | G53: 0 | H53: 0 | I53: 0 | J53: 0 | K53: 0 | L53: 0 | M53: 0 | N53: 0 | O53: 0 | P53: 0 | Q53: 0 | R53: 0 | S53: 0 | T53: 0 | U53: 467 | V53: 13 | W53: 978 | X53: 485 | Y53: 1445 | Z53: 498
B54: Backlog | C54: =C15+C27+C39+C51 -> 0 | D54: 0 | E54: 0 | F54: 0 | G54: 0 | H54: 0 | I54: 0 | J54: 0 | K54: 0 | L54: 0 | M54: 0 | N54: 0 | O54: 0 | P54: 0 | Q54: 0 | R54: 0 | S54: 0 | T54: 0 | U54: 30691.572 | V54: 7228.7562 | W54: 9938.053835 | X54: 4868.059516 | Y54: 40629.62584 | Z54: 12096.81572
B55: Forecast | C55: =C16+C28+C40+C52 -> 0 | D55: 0 | E55: 0 | F55: 0 | G55: 0 | H55: 0 | I55: 0 | J55: 0 | K55: 0 | L55: 0 | M55: 0 | N55: 0 | O55: 0 | P55: 0 | Q55: 0 | R55: 0 | S55: 0 | T55: 0 | U55: 76810 | V55: 17364 | W55: 0 | X55: 0 | Y55: 76810 | Z55: 17364

Sheet 實際認列收入
A1: 部門代碼 | B1: 員工代碼 | C1: 員工姓名 | D1: 出貨單號 | E1: 序號 | F1: 訂單單號 | G1: 品號 | H1: 品名 | I1: 數量 | J1: 收入別 | K1: 收入別 | L1: 廠牌 | M1: 廠牌 | N1: 大類 | O1: 大類 | P1: 中類 | Q1: 中類 | R1: 小類 | S1: 小類 | T1: 發票號碼 | U1: 發票日期 | V1: 出貨日 | W1: 客戶代號 | X1: 客戶名稱 | Y1: Enduser | Z1: Enduser Name | AA1: 經銷商 | AB1: 經銷商名稱 | AC1: 合約訂單編號 | AD1: WSID | AE1: 帳務聯絡人 | AF1: 帳務聯絡人姓名 | AG1: 備註 | AH1: 專案代號 | AI1: 專案名稱 | AJ1: 出貨金額 | AK1: 銷退金額 | AL1: 折讓金額 | AM1: 成本 | AN1: 毛利 | AO1: 毛利率
A2: TC111 | B2: 0700786 | C2: 尚榮芬 | D2: 2301-12010001 | E2: 4 | F2: 2200-10070004 | G2: MISC500032 | H2: HDS 9570 設備維護 | I2: 1.0000 | J2: F | K2: 維護收入 | L2: 9998 | M2: 台腦 | N2: E3009 | O2: 內部服務-硬體 | P2: E2261 | Q2: 維護服務 | U2: 2012/01/13 | V2: 2012/01/13 | W2: 0200186 | X2: 美得康科技 | Y2: 0100095 | Z2: 天主教耕莘 | AG2: 認1月份收入，金額：1 | AH2: BTC11110050006 | AI2: 耕莘醫院 HDS 9570 設備維護 | AJ2: 10000 | AK2: 0 | AL2: 0 | AM2: 0 | AN2: 10000 | AO2: 1
A3: TC111 | B3: 0700786 | C3: 尚榮芬 | D3: 2301-12010001 | E3: 5 | F3: 2200-10070004 | G3: MISC900003 | H3: 內部開發人力 | I3: 1.0000 | J3: F | K3: 維護收入 | L3: 9997 | M3: 美得康 | N3: Z9997 | O3: 台腦 | P3: Z9997 | Q3: 台腦 | U3: 2012/01/13 | V3: 2012/01/13 | W3: 0200186 | X3: 美得康科技 | Y3: 0100095 | Z3: 天主教耕莘 | AG3: 認1月份收入，金額：1 | AH3: BTC11110050006 | AI3: 耕莘醫院 HDS 9570 設備維護 | AJ3: 0 | AK3: 0 | AL3: 0 | AM3: 0 | AN3: 0 | AO3: 0
A4: TC111 | B4: 0700786 | C4: 尚榮芬 | D4: 2301-12010002 | E4: 1 | F4: 2200-10070014 | G4: MISC500030 | H4: 客戶帳務整合系統資料異地備援 | I4: 1.0000 | J4: F | K4: 維護收入 | L4: 9998 | M4: 台腦 | N4: E3009 | O4: 內部服務-硬體 | P4: E2261 | Q4: 維護服務 | U4: 2012/01/13 | V4: 2012/01/13 | W4: 0100110 | X4: 中華電信北 | Y4: 0100110 | Z4: 中華電信北 | AG4: 併2301-11110004、230 | AH4: BTD11109120007 | AI4: CHT-N/S HDS 9980 MA | AJ4: 84506 | AK4: 0 | AL4: 0 | AM4: 0 | AN4: 84506 | AO4: 1
A5: TC111 | B5: 0700786 | C5: 尚榮芬 | D5: 2301-12010002 | E5: 3 | F5: 2200-10070014 | G5: MISC900001 | H5: 內部保固人力 | I5: 1.0000 | J5: F | K5: 維護收入 | L5: 9997 | M5: 美得康 | N5: Z9997 | O5: 台腦 | P5: Z9997 | Q5: 台腦 | U5: 2012/01/13 | V5: 2012/01/13 | W5: 0100110 | X5: 中華電信北 | Y5: 0100110 | Z5: 中華電信北 | AG5: 併2301-11110004、230 | AH5: BTD11109120007 | AI5: CHT-N/S HDS 9980 MA | AJ5: 0 | AK5: 0 | AL5: 0 | AM5: 0 | AN5: 0 | AO5: 0
A6: TC111 | B6: 0700786 | C6: 尚榮芬 | D6: 2301-12010003 | E6: 2 | F6: 2200-10070014 | G6: MISC500031 | H6: 客戶帳務整合系統資料異地備援演練 | I6: 1.0000 | J6: F | K6: 維護收入 | L6: 9998 | M6: 台腦 | N6: E3009 | O6: 內部服務-硬體 | P6: E2261 | Q6: 維護服務 | U6: 2012/01/13 | V6: 2012/01/13 | W6: 0100110 | X6: 中華電信北 | Y6: 0100110 | Z6: 中華電信北 | AG6: 認列1月份收入，金額: | AH6: BTD11109120007 | AI6: CHT-N/S HDS 9980 MA | AJ6: 16079 | AK6: 0 | AL6: 0 | AM6: 0 | AN6: 16079 | AO6: 1
A7: TC111 | B7: 0700786 | C7: 尚榮芬 | D7: 2368-12010003 | E7: 2 | F7: 2254-10120003 | G7: MISC500070 | H7: LDBMS HDS9970 設備維護 | I7: 1.0000 | J7: F | K7: 維護收入 | L7: 9998 | M7: 台腦 | N7: E3009 | O7: 內部服務-硬體 | P7: E2261 | Q7: 維護服務 | U7: 2012/01/13 | V7: 2012/01/13 | W7: 0100110 | X7: 中華電信北 | Y7: 0100110 | Z7: 中華電信北 | AG7: 認1月份收入，金額：6 | AH7: BTC11110110005 | AI7: LD-BMS 9970 MA | AJ7: 63333 | AK7: 0 | AL7: 0 | AM7: 0 | AN7: 63333 | AO7: 1
A8: TC111 | B8: 0700786 | C8: 尚榮芬 | D8: 2368-12010003 | E8: 3 | F8: 2254-10120003 | G8: 3990001118 | H8: HDS BLACKLINE SUPPORT | I8: 37512.0000 | J8: F | K8: 維護收入 | L8: 0360 | M8: HDS | N8: E3013 | O8: 外購原廠服務-硬體 | P8: E2261 | Q8: 維護服務 | U8: 2012/01/13 | V8: 2012/01/13 | W8: 0100110 | X8: 中華電信北 | Y8: 0100110 | Z8: 中華電信北 | AG8: 認1月份收入，金額：6 | AH8: BTC11110110005 | AI8: LD-BMS 9970 MA | AJ8: 0 | AK8: 0 | AL8: 0 | AM8: 37512 | AN8: -37512 | AO8: 0
A9: TC111 | B9: 0700786 | C9: 尚榮芬 | D9: 2368-12010004 | E9: 3 | F9: 2250-10070015 | G9: 3990001058 | H9: 技術服務費 | I9: 1.0000 | J9: F | K9: 維護收入 | L9: 9100 | M9: 硬體廠商 | N9: E3015 | O9: 委外非原廠服務-硬體 | P9: E2048 | Q9: 顧問諮詢/技術諮詢 | U9: 2012/01/13 | V9: 2012/01/13 | W9: 0100110 | X9: 中華電信北 | Y9: 0100110 | Z9: 中華電信北 | AG9: 認1月份收入，金額：1 | AH9: BTD10007110025 | AI9: 96MA-015J (IBM 2105 F20+IBM pSerial 630) | AJ9: 14029 | AK9: 0 | AL9: 0 | AM9: 8171 | AN9: 5858 | AO9: 0.417563
A10: TC111 | B10: 0700786 | C10: 尚榮芬 | D10: 2368-12010005 | E10: 1 | F10: 2250-10070017 | G10: MISC500030 | H10: 客戶帳務整合系統資料異地備援 | I10: 1.0000 | J10: F | K10: 維護收入 | L10: 9998 | M10: 台腦 | N10: E3009 | O10: 內部服務-硬體 | P10: E2261 | Q10: 維護服務 | U10: 2012/01/13 | V10: 2012/01/13 | W10: 0100021 | X10: 中華電信南 | Y10: 0100021 | Z10: 中華電信南 | AG10: 併2368-11120011、236 | AH10: BTD11109120007 | AI10: CHT-N/S HDS 9980 MA | AJ10: 132058 | AK10: 0 | AL10: 0 | AM10: 0 | AN10: 132058 | AO10: 1
A11: TC111 | B11: 0700786 | C11: 尚榮芬 | D11: 2368-12010005 | E11: 3 | F11: 2250-10070017 | G11: 3990001063 | H11: 網路顧問服務費 | I11: 1.0000 | J11: F | K11: 維護收入 | L11: 9100 | M11: 硬體廠商 | N11: E3014 | O11: 委外非原廠服務-軟體 | P11: E2048 | Q11: 顧問諮詢/技術諮詢 | U11: 2012/01/13 | V11: 2012/01/13 | W11: 0100021 | X11: 中華電信南 | Y11: 0100021 | Z11: 中華電信南 | AG11: 併2368-11120011、236 | AH11: BTD11109120007 | AI11: CHT-N/S HDS 9980 MA | AJ11: 21561 | AK11: 0 | AL11: 0 | AM11: 21566.64 | AN11: -5.64 | AO11: -0.000261
A12: TC111 | B12: 0700786 | C12: 尚榮芬 | D12: 2368-12010005 | E12: 4 | F12: 2250-10070017 | G12: MISC900001 | H12: 內部保固人力 | I12: 1.0000 | J12: F | K12: 維護收入 | L12: 9997 | M12: 美得康 | N12: Z9997 | O12: 台腦 | P12: Z9997 | Q12: 台腦 | U12: 2012/01/13 | V12: 2012/01/13 | W12: 0100021 | X12: 中華電信南 | Y12: 0100021 | Z12: 中華電信南 | AG12: 併2368-11120011、236 | AH12: BTD11109120007 | AI12: CHT-N/S HDS 9980 MA | AJ12: 0 | AK12: 0 | AL12: 0 | AM12: 0 | AN12: 0 | AO12: 0
A13: TC111 | B13: 0700786 | C13: 尚榮芬 | D13: 2368-12010005 | E13: 6 | F13: 2250-10070017 | G13: 2040000036 | H13: HDS BCM LIC BASE *1& SVC MO BCM BASE*22 | I13: 1.0000 | J13: F | K13: 維護收入 | L13: 0360 | M13: HDS | N13: F3005 | O13: 辦公室套件/其他軟體 | P13: F2088 | Q13: 可用性軟體(HA, Cluster, DR, Backup, CDP) | U13: 2012/01/13 | V13: 2012/01/13 | W13: 0100021 | X13: 中華電信南 | Y13: 0100021 | Z13: 中華電信南 | AG13: 併2368-11120011、236 | AH13: BTD11109120007 | AI13: CHT-N/S HDS 9980 MA | AJ13: 0 | AK13: 0 | AL13: 0 | AM13: 38461.5385 | AN13: -38461.5385 | AO13: 0
A14: TC111 | B14: 0700786 | C14: 尚榮芬 | D14: 2368-12010005 | E14: 7 | F14: 2250-10070017 | G14: 1990000007 | H14: 資料轉移及異地備援建置 | I14: 146521.0000 | J14: F | K14: 維護收入 | L14: 9100 | M14: 硬體廠商 | N14: E3015 | O14: 委外非原廠服務-硬體 | P14: E2260 | Q14: 系統整合/移轉(軟硬體建置/安裝/設定) | U14: 2012/01/13 | V14: 2012/01/13 | W14: 0100021 | X14: 中華電信南 | Y14: 0100021 | Z14: 中華電信南 | AG14: 併2368-11120011、236 | AH14: BTD11109120007 | AI14: CHT-N/S HDS 9980 MA | AJ14: 0 | AK14: 0 | AL14: 0 | AM14: 146521 | AN14: -146521 | AO14: 0
A15: TC111 | B15: 0700786 | C15: 尚榮芬 | D15: 2368-12010006 | E15: 2 | F15: 2250-10070017 | G15: MISC500031 | H15: 客戶帳務整合系統資料異地備援演練 | I15: 1.0000 | J15: F | K15: 維護收入 | L15: 9998 | M15: 台腦 | N15: E3009 | O15: 內部服務-硬體 | P15: E2261 | Q15: 維護服務 | U15: 2012/01/13 | V15: 2012/01/13 | W15: 0100021 | X15: 中華電信南 | Y15: 0100021 | Z15: 中華電信南 | AG15: 認1月收入，金額：307 | AH15: BTD11109120007 | AI15: CHT-N/S HDS 9980 MA | AJ15: 30726 | AK15: 0 | AL15: 0 | AM15: 0 | AN15: 30726 | AO15: 1
A16: TC111 | B16: 0700858 | C16: 洪瑞卿 | D16: 2301-12010007 | E16: 2 | F16: 2201-12010004 | G16: MISC500019 | H16: 專業技術支援服務 | I16: 0.8000 | J16: F | K16: 維護收入 | L16: 9998 | M16: 台腦 | N16: E3009 | O16: 內部服務-硬體 | P16: E2261 | Q16: 維護服務 | U16: 2012/01/31 | V16: 2012/01/31 | W16: 0200059 | X16: 新光產物保 | Y16: 0200059 | Z16: 新光產物保 | AG16: 認1月份收入22400/含 | AH16: BTC11112010011 | AI16: 新產教育點數 | AJ16: 21334 | AK16: 0 | AL16: 0 | AM16: 0 | AN16: 21334 | AO16: 1
A17: TC111 | B17: 0700858 | C17: 洪瑞卿 | D17: 2301-12010008 | E17: 2 | F17: 2201-12010004 | G17: MISC500019 | H17: 專業技術支援服務 | I17: 0.2000 | J17: F | K17: 維護收入 | L17: 9998 | M17: 台腦 | N17: E3009 | O17: 內部服務-硬體 | P17: E2261 | Q17: 維護服務 | U17: 2012/01/31 | V17: 2012/01/31 | W17: 0200059 | X17: 新光產物保 | Y17: 0200059 | Z17: 新光產物保 | AG17: 認1月份收入，金額：5 | AH17: BTC11112010011 | AI17: 新產教育點數 | AJ17: 5333 | AK17: 0 | AL17: 0 | AM17: 0 | AN17: 5333 | AO17: 1
A18: TC111 | B18: 0700858 | C18: 洪瑞卿 | D18: 2368-12010001 | E18: 1 | F18: 2254-10110001 | G18: MISC500023 | H18: HDS TagmaStore USP維護費 | I18: 1.0000 | J18: F | K18: 維護收入 | L18: 9998 | M18: 台腦 | N18: E3009 | O18: 內部服務-硬體 | P18: E2261 | Q18: 維護服務 | U18: 2012/01/13 | V18: 2012/01/13 | W18: 0100109 | X18: 中華郵政股 | Y18: 0100109 | Z18: 中華郵政股 | AG18: 認1月份收入，金額：8 | AH18: BTD10007110002 | AI18: 96MA-001J (USP*2設備維護) | AJ18: 84921 | AK18: 0 | AL18: 0 | AM18: 0 | AN18: 84921 | AO18: 1
A19: TC111 | B19: 0700858 | C19: 洪瑞卿 | D19: 2368-12010001 | E19: 2 | F19: 2254-10110001 | G19: MISC900001 | H19: 內部保固人力 | I19: 1.0000 | J19: F | K19: 維護收入 | L19: 9997 | M19: 美得康 | N19: Z9997 | O19: 台腦 | P19: Z9997 | Q19: 台腦 | U19: 2012/01/13 | V19: 2012/01/13 | W19: 0100109 | X19: 中華郵政股 | Y19: 0100109 | Z19: 中華郵政股 | AG19: 認1月份收入，金額：8 | AH19: BTD10007110002 | AI19: 96MA-001J (USP*2設備維護) | AJ19: 0 | AK19: 0 | AL19: 0 | AM19: 0 | AN19: 0 | AO19: 0
A20: TC111 | B20: 0700858 | C20: 洪瑞卿 | D20: 2368-12010002 | E20: 2 | F20: 2254-11080002 | G20: 3990001067 | H20: HDS BLACKLINE SUPPORT | I20: 1.0000 | J20: F | K20: 維護收入 | L20: 0360 | M20: HDS | N20: E3013 | O20: 外購原廠服務-硬體 | P20: E2261 | Q20: 維護服務 | U20: 2012/01/13 | V20: 2012/01/13 | W20: 0100010 | X20: 台新國際銀 | Y20: 0100010 | Z20: 台新國際銀 | AG20: 認1月收入，金額：111 | AH20: BTC11111080022 | AI20: 台新HDS AMS維護案 | AJ20: 111111 | AK20: 0 | AL20: 0 | AM20: 77917 | AN20: 33194 | AO20: 0.298746
A21: TC111 | B21: 0700858 | C21: 洪瑞卿 | D21: 2368-12010002 | E21: 3 | F21: 2254-11080002 | G21: MISC900004 | H21: 內部維護人力 | I21: 1.0000 | J21: F | K21: 維護收入 | L21: 9997 | M21: 美得康 | N21: Z9997 | O21: 台腦 | P21: Z9997 | Q21: 台腦 | U21: 2012/01/13 | V21: 2012/01/13 | W21: 0100010 | X21: 台新國際銀 | Y21: 0100010 | Z21: 台新國際銀 | AG21: 認1月收入，金額：111 | AH21: BTC11111080022 | AI21: 台新HDS AMS維護案 | AJ21: 0 | AK21: 0 | AL21: 0 | AM21: 0 | AN21: 0 | AO21: 0
A22: TC111 | B22: 0900096 | C22: 林平三 | D22: 2301-12010005 | E22: 2 | F22: 2201-12010001 | G22: 1020000135 | H22: RIMAGE 2001480 THREE PANEL COLOR-CMY | I22: 40.0000 | J22: A | K22: 銷貨收入 | L22: 0577 | M22: Rimage | N22: B3006 | O22: 印表機耗材 | P22: B2027 | Q22: 色帶 | U22: 2012/01/18 | V22: 2012/01/18 | W22: 1000062 | X22: 法若嘉 | Y22: 1000062 | Z22: 法若嘉 | AG22: 於1/18開立發票，金額 | AH22: BTC11112010004 | AI22: Rimage 色膜採購 | AJ22: 144000 | AK22: 0 | AL22: 0 | AM22: 129642.3667 | AN22: 14357.6333 | AO22: 0.099705
A23: TC111 | B23: 0900096 | C23: 林平三 | D23: 2301-12010005 | E23: 3 | F23: 2201-12010001 | G23: 1060000022 | H23: RIMAGE 2001469 RETRANSFER ROLL | I23: 40.0000 | J23: A | K23: 銷貨收入 | L23: 0577 | M23: Rimage | N23: B3006 | O23: 印表機耗材 | P23: B2027 | Q23: 色帶 | U23: 2012/01/18 | V23: 2012/01/18 | W23: 1000062 | X23: 法若嘉 | Y23: 1000062 | Z23: 法若嘉 | AG23: 於1/18開立發票，金額 | AH23: BTC11112010004 | AI23: Rimage 色膜採購 | AJ23: 46000 | AK23: 0 | AL23: 0 | AM23: 41335.2333 | AN23: 4664.7667 | AO23: 0.101407
A24: TC111 | B24: 0900096 | C24: 林平三 | D24: 2301-12010005 | E24: 4 | F24: 2201-12010001 | G24: 1060000001 | H24: RIMAGE 203638-001 3PANEL COLOR | I24: 40.0000 | J24: A | K24: 銷貨收入 | L24: 0577 | M24: Rimage | N24: B3006 | O24: 印表機耗材 | P24: B2027 | Q24: 色帶 | U24: 2012/01/18 | V24: 2012/01/18 | W24: 1000062 | X24: 法若嘉 | Y24: 1000062 | Z24: 法若嘉 | AG24: 於1/18開立發票，金額 | AH24: BTC11112010004 | AI24: Rimage 色膜採購 | AJ24: 144000 | AK24: 0 | AL24: 0 | AM24: 128256.3915 | AN24: 15743.6085 | AO24: 0.10933
A25: TC111 | B25: 0900096 | C25: 林平三 | D25: 2301-12010005 | E25: 5 | F25: 2201-12010001 | G25: 1060000040 | H25: RIMAGE 203474-001 EVEREST III RETRANSFER | I25: 40.0000 | J25: A | K25: 銷貨收入 | L25: 0577 | M25: Rimage | N25: B3006 | O25: 印表機耗材 | P25: B2026 | Q25: 感光滾筒 | U25: 2012/01/18 | V25: 2012/01/18 | W25: 1000062 | X25: 法若嘉 | Y25: 1000062 | Z25: 法若嘉 | AG25: 於1/18開立發票，金額 | AH25: BTC11112010004 | AI25: Rimage 色膜採購 | AJ25: 46000 | AK25: 0 | AL25: 0 | AM25: 41036.7273 | AN25: 4963.2727 | AO25: 0.107897
A26: TC111 | B26: 0900096 | C26: 林平三 | D26: 2301-12010006 | E26: 2 | F26: 2201-12010003 | G26: 1020000031 | H26: RIMAGE 3000927PRINTHEAD REPLACEMENT KIT | I26: 4.0000 | J26: A | K26: 銷貨收入 | L26: 0577 | M26: Rimage | N26: B3005 | O26: 零套件設備 | P26: B2036 | Q26: 其他(零套件設備) | U26: 2012/01/30 | V26: 2012/01/30 | W26: 1000036 | X26: 警政署 | Y26: 1000036 | Z26: 警政署 | AG26: 認1月份收入，金額：7 | AH26: BTC11112010002 | AI26: 警政署通訊監察中心 Prism Head 採購 | AJ26: 76000 | AK26: 0 | AL26: 0 | AM26: 37053.9706 | AN26: 38946.0294 | AO26: 0.512447
A27: TC111 | B27: 1000060 | C27: 周睿騰 | D27: 2301-12010004 | E27: 2 | F27: 2201-12010002 | G27: MISC500019 | H27: 專業技術支援服務 | I27: 1.0000 | J27: F | K27: 維護收入 | L27: 9998 | M27: 台腦 | N27: E3009 | O27: 內部服務-硬體 | P27: E2261 | Q27: 維護服務 | U27: 2012/01/18 | V27: 2012/01/18 | W27: 1000063 | X27: 零壹 | Y27: 1000063 | Z27: 零壹 | AG27: 於1/18日開立發票，金 | AH27: BTC11111010007 | AI27: 刀鋒伺服器擴充案 | AJ27: 35000 | AK27: 0 | AL27: 0 | AM27: 0 | AN27: 35000 | AO27: 1
A28: 1月份總計 | AJ28: 1085991 | AK28: 0 | AL28: 0 | AM28: 707473.8679 | AN28: 378517.1321

Sheet 維護Backlog
A1: TC111 - Y2012 維護Backlog及內容分析表
A2: CRM ID | B2: YYMM進度(P/B/F)-序 | C2: Sales Rep. | D2: 合約客戶 / 夥伴 | E2: 專案名稱 | F2: 專案(產品)內容 | G2: 得標 /訂單 時間 | H2: 開始日期 | I2: 結束時間 | J2: 信心% | K2: 全案 維護 總Rev. | L2: 外購 外包 成本 | M2: 內部 人力 費用 | N2: 裝機及保固 成本 | O2: 全案 維護 總GP | P2: Y2012 剩餘可認列 Rev. | Q2: Y2012 剩餘可認列 GP. | R2: 備註or進度說明(YYMM進度-序)
S3: 當月認列明細
S4: 認列Revenue | T4: 認列成本 | U4: 認列人力成本 | V4: 認列GP
A5: 1月
A6: BTD10007110025 | C6: 尚榮芬 | D6: 中華電信 | E6: 96MA-015J (IBM 2105 F20、IBM pSerial 630) | G6: 96.02.16 | H6: 96.02.16 | I6: 101.02.15 | J6: 1 | K6: =2523810/1000 -> 2523.81 | L6: =1485714/1000 -> 1485.714 | N6: =898096/1000 -> 898.096 | O6: =K6-L6-M6-N6 -> 140 | P6: =S6*12 -> 168.34284 | Q6: =V6*12 -> 70.29084 | S6: =14028.57/1000 -> 14.02857 | T6: =8171/1000 -> 8.171 | U6: =14968.27/1000 -> 14.96827 | V6: =SUM(S6-T6) -> 5.85757
A7: BTC11110050006 | C7: 尚榮芬 | D7: 美得康 for耕莘醫院 | E7: HDS 9570設備維護 | G7: 99.05.27 | H7: 99.04.01 | I7: 102.03.31 | J7: 1 | K7: =370000/1000 -> 370 | M7: =301097/1000 -> 301.097 | O7: =370000/1000 -> 370 | P7: =(360000/36*9)/1000+(10000/1000) -> 100 | Q7: =(360000/36*9)/1000+(10000/1000) -> 100 | S7: =360000/1000/36 -> 10 | U7: =301097/1000/36 -> 8.363805556 | V7: =S7 -> 10
A8: PTD11109120007 | C8: 尚榮芬 | D8: 中華電信北區、南區 | E8: 客戶帳務整合系統資料異地備援設備維護 | G8: 98.12.31 | H8: 99.01.23 | I8: 101.01.22 | J8: 1 | K8: =6838095/1000 -> 6838.095 | L8: =515600/1000 -> 515.6 | M8: =5470476/1000 -> 5470.476 | O8: =K8 -> 6838.095 | P8: =6838095/1000/2 -> 3419.0475 | Q8: =6838095/1000/2 -> 3419.0475 | S8: =6838095/1000/24 -> 284.920625 | T8: =(21567+(500000/13)+(1904762/13))/1000 -> 206.5486923 | U8: =5470476/1000/24 -> 227.9365 | V8: =S8-T8 -> 78.37193269
A9: BTC11110110005 | C9: 尚榮芬 | D9: 中華電信北區 | E9: LDBMS HDS 9970 設備維護 | G9: 99.12.17 | H9: 100.01.01 | I9: 101.12.31 | J9: 1 | K9: =1520000/1000 -> 1520 | M9: =100000/1000 -> 100 | O9: =K9 -> 1520 | P9: =O9/2 -> 760 | Q9: =P9 -> 760 | S9: =1520000/1000/24 -> 63.33333333 | T9: 40 | V9: =S9-T9 -> 23.33333333
A10: BTD10007110002 | C10: 洪瑞卿 | D10: 台灣郵政（USP) | E10: 96MA-001J (USP600磁碟機組*2) | G10: 96.02.09 | H10: 96.02.09 | I10: 101.02.08 | J10: 1 | K10: =5095238/1000 -> 5095.238 | L10: =(476190/1000)+(456000/1000)+(300000/1000) -> 1232.19 | N10: =(3900000/1000)-(75000/1000) -> 3825 | O10: =K10-L10-M10-N10 -> 38.048 | P10: =S10*12 -> 1019.052 | Q10: =V10*12 -> 1019.052 | S10: =84921/1000 -> 84.921 | U10: =60000/1000 -> 60 | V10: =SUM(S10-T10) -> 84.921
A11: BTC11111080022 | C11: 洪瑞卿 | D11: 台新銀行 | E11: HDS AMS 硬體設備維護 | G11: 100.09.01 | H11: 100.09.01 | I11: 101.08.31 | J11: 1 | K11: =1333333/1000 -> 1333.333 | L11: =941800/1000 -> 941.8 | M11: =69390/1000 -> 69.39 | O11: =K11-L11 -> 391.533 | P11: =K11 -> 1333.333 | Q11: =O11 -> 391.533 | S11: =1333333/1000/12 -> 111.1110833 | T11: =941800/12/1000 -> 78.48333333 | U11: =69390/12/1000 -> 5.7825 | V11: =S11-T11 -> 32.62775
A12: BTC11111120007 | C12: 洪瑞卿 | D12: 新光人壽 | E12: EPM系統維護服務 | G12: 101.01.06 | H12: 101.01.01 | I12: 101.12.31 | J12: 1 | K12: =100000/1000 -> 100 | L12: =86142.84/1000 -> 86.14284 | O12: =K12-L12 -> 13.85716 | P12: =K12 -> 100 | Q12: =O12 -> 13.85716 | S12: =100000/1000/12 -> 8.333333333 | T12: =86142.84/1000/12 -> 7.17857 | V12: 1.154763333
A13: BTC11112010006 | C13: 林平三 | D13: 高睿科技 | E13: RIMAGE 8100設備 | G13: 101.01.10 | H13: 101.01.01 | I13: 101.12.31 | J13: 1 | K13: =1047619/1000 -> 1047.619 | M13: =733333/1000 -> 733.333 | O13: =K13-L13 -> 1047.619 | P13: =K13 -> 1047.619 | Q13: =O13 -> 1047.619 | S13: =1047619/1000/12 -> 87.30158333 | U13: =733333/1000/12 -> 61.11108333 | V13: 87.30158333
A16: 1月小計 | S16: =SUM(S6:S15) -> 663.9495283 | T16: =SUM(T6:T15) -> 340.3815956 | U16: =SUM(U6:U15) -> 378.1621589 | V16: =SUM(V6:V15) -> 323.5679327
A17: 2月
A18: BTD10007110025 | C18: 尚榮芬 | D18: 中華電信 | E18: 96MA-015J (IBM 2105 F20、IBM pSerial 630) | G18: 96.02.16 | H18: 96.02.16 | I18: 101.02.15 | J18: 1 | K18: =2523810/1000 -> 2523.81 | L18: =1485714/1000 -> 1485.714 | N18: =898096/1000 -> 898.096 | O18: =K18-L18-M18-N18 -> 140 | P18: =S18*12 -> 168.34284 | Q18: =V18*12 -> 70.29084 | S18: =14028.57/1000 -> 14.02857 | T18: =8171/1000 -> 8.171 | U18: =14968.27/1000 -> 14.96827 | V18: =SUM(S18-T18) -> 5.85757
A19: BTC11110050006 | C19: 尚榮芬 | D19: 美得康 for耕莘醫院 | E19: HDS 9570設備維護 | G19: 99.05.27 | H19: 99.04.01 | I19: 102.03.31 | J19: 1 | K19: =370000/1000 -> 370 | M19: =301097/1000 -> 301.097 | O19: =370000/1000 -> 370 | P19: =(360000/36*9)/1000+(10000/1000) -> 100 | Q19: =(360000/36*9)/1000+(10000/1000) -> 100 | S19: =360000/1000/36 -> 10 | U19: =301097/1000/36 -> 8.363805556 | V19: =S19 -> 10
A20: BTC11110110005 | C20: 尚榮芬 | D20: 中華電信北區 | E20: LDBMS HDS 9970 設備維護 | G20: 99.12.17 | H20: 100.01.01 | I20: 101.12.31 | J20: 1 | K20: =1520000/1000 -> 1520 | M20: =100000/1000 -> 100 | O20: =K20 -> 1520 | P20: =O20/2 -> 760 | Q20: =P20 -> 760 | S20: =1520000/1000/24 -> 63.33333333 | T20: 40 | V20: =S20-T20 -> 23.33333333
A21: BTD10007110002 | C21: 洪瑞卿 | D21: 台灣郵政（USP) | E21: 96MA-001J (USP600磁碟機組*2) | G21: 96.02.09 | H21: 96.02.09 | I21: 101.02.08 | J21: 1 | K21: =5095238/1000 -> 5095.238 | L21: =(476190/1000)+(456000/1000)+(300000/1000) -> 1232.19 | N21: =(3900000/1000)-(75000/1000) -> 3825 | O21: =K21-L21-M21-N21 -> 38.048 | P21: =S21*12 -> 1019.052 | Q21: =V21*12 -> 1019.052 | S21: =84921/1000 -> 84.921 | U21: =60000/1000 -> 60 | V21: =SUM(S21-T21) -> 84.921
A22: BTC11111080022 | C22: 洪瑞卿 | D22: 台新銀行 | E22: HDS AMS 硬體設備維護 | G22: 100.09.01 | H22: 100.09.01 | I22: 101.08.31 | J22: 1 | K22: =1333333/1000 -> 1333.333 | L22: =941800/1000 -> 941.8 | M22: =69390/1000 -> 69.39 | O22: =K22-L22 -> 391.533 | P22: =K22 -> 1333.333 | Q22: =O22 -> 391.533 | S22: =1333333/1000/12 -> 111.1110833 | T22: =941800/12/1000 -> 78.48333333 | U22: =69390/12/1000 -> 5.7825 | V22: =S22-T22 -> 32.62775
A23: BTC11111120007 | C23: 洪瑞卿 | D23: 新光人壽 | E23: EPM系統維護服務 | G23: 101.01.06 | H23: 101.01.01 | I23: 101.12.31 | J23: 1 | K23: =100000/1000 -> 100 | L23: =86142.84/1000 -> 86.14284 | O23: =K23-L23 -> 13.85716 | P23: 100 | Q23: =O23 -> 13.85716 | S23: =100000/1000/12*2 -> 16.66666667 | T23: =86142.84/1000/12*2 -> 14.35714 | V23: 2.309526667
A24: 2月小計 | S24: =SUM(S18:S23) -> 300.0606533 | T24: =SUM(T18:T23) -> 141.0114733 | U24: =SUM(U18:U23) -> 89.11457556 | V24: =SUM(V18:V23) -> 159.04918
A25: 3月
A26: BTC11110050006 | C26: 尚榮芬 | D26: 美得康 for耕莘醫院 | E26: HDS 9570設備維護 | G26: 99.05.27 | H26: 99.04.01 | I26: 102.03.31 | J26: 1 | K26: =370000/1000 -> 370 | M26: =301097/1000 -> 301.097 | O26: =370000/1000 -> 370 | P26: =(360000/36*9)/1000+(10000/1000) -> 100 | Q26: =(360000/36*9)/1000+(10000/1000) -> 100 | S26: =360000/1000/36 -> 10 | U26: =301097/1000/36 -> 8.363805556 | V26: =S26 -> 10
A27: BTC11110110005 | C27: 尚榮芬 | D27: 中華電信北區 | E27: LDBMS HDS 9970 設備維護 | G27: 99.12.17 | H27: 100.01.01 | I27: 101.12.31 | J27: 1 | K27: =1520000/1000 -> 1520 | M27: =100000/1000 -> 100 | O27: =K27 -> 1520 | P27: =O27/2 -> 760 | Q27: =P27 -> 760 | S27: =1520000/1000/24 -> 63.33333333 | T27: 40 | V27: =S27-T27 -> 23.33333333
A28: BTC11111080022 | C28: 洪瑞卿 | D28: 台新銀行 | E28: HDS AMS 硬體設備維護 | G28: 100.09.01 | H28: 100.09.01 | I28: 101.08.31 | J28: 1 | K28: =1333333/1000 -> 1333.333 | L28: =941800/1000 -> 941.8 | M28: =69390/1000 -> 69.39 | O28: =K28-L28 -> 391.533 | P28: =K28 -> 1333.333 | Q28: =O28 -> 391.533 | S28: =1333333/1000/12 -> 111.1110833 | T28: =941800/12/1000 -> 78.48333333 | U28: =69390/12/1000 -> 5.7825 | V28: =S28-T28 -> 32.62775
A29: BTC11111120007 | C29: 洪瑞卿 | D29: 新光人壽 | E29: EPM系統維護服務 | G29: 101.01.06 | H29: 101.01.01 | I29: 101.12.31 | J29: 1 | K29: =100000/1000 -> 100 | L29: =86142.84/1000 -> 86.14284 | O29: =K29-L29 -> 13.85716 | P29: 100 | Q29: =O29 -> 13.85716 | S29: =100000/1000/12 -> 8.333333333 | T29: =86142.84/1000/12 -> 7.17857 | V29: 1.154763333
A30: BTC11112010006 | C30: 林平三 | D30: 高睿科技 | E30: RIMAGE 8100設備 | G30: 101.01.10 | H30: 101.01.01 | I30: 101.12.31 | J30: 1 | K30: =1047619/1000 -> 1047.619 | M30: =733333/1000 -> 733.333 | O30: =K30-L30 -> 1047.619 | P30: 1047.619 | Q30: =O30 -> 1047.619 | S30: =1047619/1000/12*3 -> 261.90475 | U30: =733333/1000/12*3 -> 183.33325 | V30: 261.90475
A31: BKC1111112005 | C31: 鍾長志 | D31: 中華電信南分 | E31: 南北帳務整合系統資料異地備援 | G31: 101.02.13 | H31: 101.01.16 | I31: 103.01.22 | J31: 1 | K31: =8571429/1000 -> 8571.429 | L31: =6914286/1000 -> 6914.286 | O31: =K31-L31 -> 1657.143 | P31: 8571.429 | Q31: =O31 -> 1657.143 | S31: =8571429/1000/24 -> 357.142875 | T31: =6914286/1000/24 -> 288.09525 | V31: =S31-T31 -> 69.047625 | W31: 掛在美得康
A32: BKC1111112005 | C32: 鍾長志 | D32: 中華電信北分 | E32: 南北帳務整合系統資料異地備援 | G32: 101.02.13 | H32: 101.01.11 | I32: 102.12.16 | J32: 1 | K32: =4952381/1000 -> 4952.381 | L32: =1000000/1000 -> 1000 | O32: =K32-L32 -> 3952.381 | P32: 4952.381 | Q32: =O32 -> 3952.381 | S32: =4952381/1000/23 -> 215.320913 | T32: =1000000/1000/23 -> 43.47826087 | V32: =S32-T32 -> 171.8426522 | W32: 掛在美得康
A33: BTC11112020012 | C33: 尚榮芬 | D33: 精誠 | E33: 警政署維護 | G33: 101.02.22 | H33: 101.01.01 | I33: 101.12.31 | J33: 1 | K33: =1200000/1000 -> 1200 | M33: =300000/1000 -> 300 | O33: =K33 -> 1200 | P33: 1200 | Q33: =P33 -> 1200 | S33: =1200000/1000/12*3 -> 300 | T33: =40*3 -> 120 | U33: =300000/1000/12*3 -> 75 | V33: 180
A34: BKC1111112005 | C34: 鍾長志 | D34: 中華電信南分 | E34: 南北帳務整合系統資料異地備援 | G34: 101.02.13 | H34: 101.01.16 | I34: 103.01.22 | J34: 1 | K34: =8571429/1000 -> 8571.429 | L34: =6914286/1000 -> 6914.286 | O34: =K34-L34 -> 1657.143 | P34: 8571.429 | Q34: =O34 -> 1657.143 | S34: =8571429/1000/24 -> 357.142875 | T34: =6914286/1000/24 -> 288.09525 | V34: =S34-T34 -> 69.047625 | W34: 掛在美得康
A35: BKC1111112005 | C35: 鍾長志 | D35: 中華電信北分 | E35: 南北帳務整合系統資料異地備援 | G35: 101.02.13 | H35: 101.01.11 | I35: 102.12.16 | J35: 1 | K35: =4952381/1000 -> 4952.381 | L35: =1000000/1000 -> 1000 | O35: =K35-L35 -> 3952.381 | P35: 4952.381 | Q35: =O35 -> 3952.381 | S35: =4952381/1000/23 -> 215.320913 | T35: =1000000/1000/23 -> 43.47826087 | V35: =S35-T35 -> 171.8426522 | W35: 掛在美得康
A37: 3月小計 | S37: =SUM(S26:S36) -> 1899.610076 | T37: =SUM(T26:T36) -> 908.8089251 | U37: =SUM(U26:U36) -> 272.4795556 | V37: =SUM(V26:V36) -> 990.801151
A38: 4月
A39: BTC11110110005 | C39: 尚榮芬 | D39: 中華電信北區 | E39: LDBMS HDS 9970 設備維護 | G39: 99.12.17 | H39: 100.01.01 | I39: 101.12.31 | J39: 1 | K39: =1520000/1000 -> 1520 | M39: =100000/1000 -> 100 | O39: =K39 -> 1520 | P39: =O39/2 -> 760 | Q39: =P39 -> 760 | S39: =1520000/1000/24 -> 63.33333333 | T39: 40 | V39: =S39-T39 -> 23.33333333
A40: BTC11111080022 | C40: 洪瑞卿 | D40: 台新銀行 | E40: HDS AMS 硬體設備維護 | G40: 100.09.01 | H40: 100.09.01 | I40: 101.08.31 | J40: 1 | K40: =1333333/1000 -> 1333.333 | L40: =941800/1000 -> 941.8 | M40: =69390/1000 -> 69.39 | O40: =K40-L40 -> 391.533 | P40: =K40 -> 1333.333 | Q40: =O40 -> 391.533 | S40: =1333333/1000/12 -> 111.1110833 | T40: =941800/12/1000 -> 78.48333333 | U40: =69390/12/1000 -> 5.7825 | V40: =S40-T40 -> 32.62775
A41: BTC11111120007 | C41: 洪瑞卿 | D41: 新光人壽 | E41: EPM系統維護服務 | G41: 101.01.06 | H41: 101.01.01 | I41: 101.12.31 | J41: 1 | K41: =100000/1000 -> 100 | L41: =86142.84/1000 -> 86.14284 | O41: =K41-L41 -> 13.85716 | P41: 100 | Q41: =O41 -> 13.85716 | S41: =100000/1000/12 -> 8.333333333 | T41: =86142.84/1000/12 -> 7.17857 | V41: 1.154763333
A42: BTC11112010006 | C42: 林平三 | D42: 高睿科技 | E42: RIMAGE 8100設備 | G42: 101.01.10 | H42: 101.01.01 | I42: 101.12.31 | J42: 1 | K42: =1047619/1000 -> 1047.619 | M42: =733333/1000 -> 733.333 | O42: =K42-L42 -> 1047.619 | P42: 1047.619 | Q42: =O42 -> 1047.619 | S42: =1047619/1000/12 -> 87.30158333 | U42: =733333/1000/12 -> 61.11108333 | V42: 87.30158333
A43: BTC11112020012 | C43: 尚榮芬 | D43: 精誠 | E43: 警政署維護 | G43: 101.02.22 | H43: 101.01.01 | I43: 101.12.31 | J43: 1 | K43: =1200000/1000 -> 1200 | M43: =300000/1000 -> 300 | O43: =K43 -> 1200 | P43: 1200 | Q43: =P43 -> 1200 | S43: =1200000/1000/12 -> 100 | T43: 40 | U43: =300000/1000/12 -> 25 | V43: 60
A44: BKC1111112005 | C44: 鍾長志 | D44: 中華電信南分 | E44: 南北帳務整合系統資料異地備援 | G44: 101.02.13 | H44: 101.01.16 | I44: 103.01.22 | J44: 1 | K44: =8571429/1000 -> 8571.429 | L44: =6914286/1000 -> 6914.286 | O44: =K44-L44 -> 1657.143 | P44: 8571.429 | Q44: =O44 -> 1657.143 | S44: =8571429/1000/24 -> 357.142875 | T44: =6914286/1000/24 -> 288.09525 | V44: =S44-T44 -> 69.047625 | W44: 掛在美得康
A45: BKC1111112005 | C45: 鍾長志 | D45: 中華電信北分 | E45: 南北帳務整合系統資料異地備援 | G45: 101.02.13 | H45: 101.01.11 | I45: 102.12.16 | J45: 1 | K45: =4952381/1000 -> 4952.381 | L45: =1000000/1000 -> 1000 | O45: =K45-L45 -> 3952.381 | P45: 4952.381 | Q45: =O45 -> 3952.381 | S45: =4952381/1000/23 -> 215.320913 | T45: =1000000/1000/23 -> 43.47826087 | V45: =S45-T45 -> 171.8426522 | W45: 掛在美得康
A47: 4月小計 | S47: =SUM(S39:S46) -> 942.5431214 | T47: =SUM(T39:T46) -> 497.2354142 | U47: =SUM(U39:U46) -> 91.89358333 | V47: =SUM(V39:V46) -> 445.3077072
A48: 5月
A49: BTC11110110005 | C49: 尚榮芬 | D49: 中華電信北區 | E49: LDBMS HDS 9970 設備維護 | G49: 99.12.17 | H49: 100.01.01 | I49: 101.12.31 | J49: 1 | K49: =1520000/1000 -> 1520 | M49: =100000/1000 -> 100 | O49: =K49 -> 1520 | P49: =O49/2 -> 760 | Q49: =P49 -> 760 | S49: =1520000/1000/24 -> 63.33333333 | T49: 40 | V49: =S49-T49 -> 23.33333333
A50: BTC11111080022 | C50: 洪瑞卿 | D50: 台新銀行 | E50: HDS AMS 硬體設備維護 | G50: 100.09.01 | H50: 100.09.01 | I50: 101.08.31 | J50: 1 | K50: =1333333/1000 -> 1333.333 | L50: =941800/1000 -> 941.8 | M50: =69390/1000 -> 69.39 | O50: =K50-L50 -> 391.533 | P50: =K50 -> 1333.333 | Q50: =O50 -> 391.533 | S50: =1333333/1000/12 -> 111.1110833 | T50: =941800/12/1000 -> 78.48333333 | U50: =69390/12/1000 -> 5.7825 | V50: =S50-T50 -> 32.62775
A51: BTC11111120007 | C51: 洪瑞卿 | D51: 新光人壽 | E51: EPM系統維護服務 | G51: 101.01.06 | H51: 101.01.01 | I51: 101.12.31 | J51: 1 | K51: =100000/1000 -> 100 | L51: =86142.84/1000 -> 86.14284 | O51: =K51-L51 -> 13.85716 | P51: 100 | Q51: =O51 -> 13.85716 | S51: =100000/1000/12 -> 8.333333333 | T51: =86142.84/1000/12 -> 7.17857 | V51: 1.154763333
A52: BTC11112010006 | C52: 林平三 | D52: 高睿科技 | E52: RIMAGE 8100設備 | G52: 101.01.10 | H52: 101.01.01 | I52: 101.12.31 | J52: 1 | K52: =1047619/1000 -> 1047.619 | M52: =733333/1000 -> 733.333 | O52: =K52-L52 -> 1047.619 | P52: 1047.619 | Q52: =O52 -> 1047.619 | S52: =1047619/1000/12 -> 87.30158333 | U52: =733333/1000/12 -> 61.11108333 | V52: 87.30158333
A53: BTC11112020012 | C53: 尚榮芬 | D53: 精誠 | E53: 警政署維護 | G53: 101.02.22 | H53: 101.01.01 | I53: 101.12.31 | J53: 1 | K53: =1200000/1000 -> 1200 | M53: =300000/1000 -> 300 | O53: =K53 -> 1200 | P53: 1200 | Q53: =P53 -> 1200 | S53: =1200000/1000/12 -> 100 | T53: 40 | U53: =300000/1000/12 -> 25 | V53: 60
A54: BKC1111112005 | C54: 鍾長志 | D54: 中華電信南分 | E54: 南北帳務整合系統資料異地備援 | G54: 101.02.13 | H54: 101.01.16 | I54: 103.01.22 | J54: 1 | K54: =8571429/1000 -> 8571.429 | L54: =6914286/1000 -> 6914.286 | O54: =K54-L54 -> 1657.143 | P54: 8571.429 | Q54: =O54 -> 1657.143 | S54: =8571429/1000/24 -> 357.142875 | T54: =6914286/1000/24 -> 288.09525 | V54: =S54-T54 -> 69.047625 | W54: 掛在美得康
A55: BKC1111112005 | C55: 鍾長志 | D55: 中華電信北分 | E55: 南北帳務整合系統資料異地備援 | G55: 101.02.13 | H55: 101.01.11 | I55: 102.12.16 | J55: 1 | K55: =4952381/1000 -> 4952.381 | L55: =1000000/1000 -> 1000 | O55: =K55-L55 -> 3952.381 | P55: 4952.381 | Q55: =O55 -> 3952.381 | S55: =4952381/1000/23 -> 215.320913 | T55: =1000000/1000/23 -> 43.47826087 | V55: =S55-T55 -> 171.8426522 | W55: 掛在美得康
A57: 5月小計 | S57: =SUM(S49:S56) -> 942.5431214 | T57: =SUM(T49:T56) -> 497.2354142 | U57: =SUM(U49:U56) -> 91.89358333 | V57: =SUM(V49:V56) -> 445.3077072
A58: 6月
A59: BTC11110110005 | C59: 尚榮芬 | D59: 中華電信北區 | E59: LDBMS HDS 9970 設備維護 | G59: 99.12.17 | H59: 100.01.01 | I59: 101.12.31 | J59: 1 | K59: =1520000/1000 -> 1520 | M59: =100000/1000 -> 100 | O59: =K59 -> 1520 | P59: =O59/2 -> 760 | Q59: =P59 -> 760 | S59: =1520000/1000/24 -> 63.33333333 | T59: 40 | V59: =S59-T59 -> 23.33333333
A60: BTC11111080022 | C60: 洪瑞卿 | D60: 台新銀行 | E60: HDS AMS 硬體設備維護 | G60: 100.09.01 | H60: 100.09.01 | I60: 101.08.31 | J60: 1 | K60: =1333333/1000 -> 1333.333 | L60: =941800/1000 -> 941.8 | M60: =69390/1000 -> 69.39 | O60: =K60-L60 -> 391.533 | P60: =K60 -> 1333.333 | Q60: =O60 -> 391.533 | S60: =1333333/1000/12 -> 111.1110833 | T60: =941800/12/1000 -> 78.48333333 | U60: =69390/12/1000 -> 5.7825 | V60: =S60-T60 -> 32.62775
A61: BTC11111120007 | C61: 洪瑞卿 | D61: 新光人壽 | E61: EPM系統維護服務 | G61: 101.01.06 | H61: 101.01.01 | I61: 101.12.31 | J61: 1 | K61: =100000/1000 -> 100 | L61: =86142.84/1000 -> 86.14284 | O61: =K61-L61 -> 13.85716 | P61: 100 | Q61: =O61 -> 13.85716 | S61: =100000/1000/12 -> 8.333333333 | T61: =86142.84/1000/12 -> 7.17857 | V61: 1.154763333
A62: BTC11112010006 | C62: 林平三 | D62: 高睿科技 | E62: RIMAGE 8100設備 | G62: 101.01.10 | H62: 101.01.01 | I62: 101.12.31 | J62: 1 | K62: =1047619/1000 -> 1047.619 | M62: =733333/1000 -> 733.333 | O62: =K62-L62 -> 1047.619 | P62: 1047.619 | Q62: =O62 -> 1047.619 | S62: =1047619/1000/12 -> 87.30158333 | U62: =733333/1000/12 -> 61.11108333 | V62: 87.30158333
A63: BTC11112020012 | C63: 尚榮芬 | D63: 精誠 | E63: 警政署維護 | G63: 101.02.22 | H63: 101.01.01 | I63: 101.12.31 | J63: 1 | K63: =1200000/1000 -> 1200 | M63: =300000/1000 -> 300 | O63: =K63 -> 1200 | P63: 1200 | Q63: =P63 -> 1200 | S63: =1200000/1000/12 -> 100 | T63: 40 | U63: =300000/1000/12 -> 25 | V63: 60
A64: BKC1111112005 | C64: 鍾長志 | D64: 中華電信南分 | E64: 南北帳務整合系統資料異地備援 | G64: 101.02.13 | H64: 101.01.16 | I64: 103.01.22 | J64: 1 | K64: =8571429/1000 -> 8571.429 | L64: =6914286/1000 -> 6914.286 | O64: =K64-L64 -> 1657.143 | P64: 8571.429 | Q64: =O64 -> 1657.143 | S64: =8571429/1000/24 -> 357.142875 | T64: =6914286/1000/24 -> 288.09525 | V64: =S64-T64 -> 69.047625 | W64: 掛在美得康
A65: BKC1111112005 | C65: 鍾長志 | D65: 中華電信北分 | E65: 南北帳務整合系統資料異地備援 | G65: 101.02.13 | H65: 101.01.11 | I65: 102.12.16 | J65: 1 | K65: =4952381/1000 -> 4952.381 | L65: =1000000/1000 -> 1000 | O65: =K65-L65 -> 3952.381 | P65: 4952.381 | Q65: =O65 -> 3952.381 | S65: =4952381/1000/23 -> 215.320913 | T65: =1000000/1000/23 -> 43.47826087 | V65: =S65-T65 -> 171.8426522 | W65: 掛在美得康
A66: 6月小計 | S66: =SUM(S59:S65) -> 942.5431214 | T66: =SUM(T59:T65) -> 497.2354142 | U66: =SUM(U59:U65) -> 91.89358333 | V66: =SUM(V59:V65) -> 445.3077072
A67: 7月
A68: BTC11110110005 | C68: 尚榮芬 | D68: 中華電信北區 | E68: LDBMS HDS 9970 設備維護 | G68: 99.12.17 | H68: 100.01.01 | I68: 101.12.31 | J68: 1 | K68: =1520000/1000 -> 1520 | M68: =100000/1000 -> 100 | O68: =K68 -> 1520 | P68: =O68/2 -> 760 | Q68: =P68 -> 760 | S68: =1520000/1000/24 -> 63.33333333 | T68: 40 | V68: =S68-T68 -> 23.33333333
A69: BTC11111080022 | C69: 洪瑞卿 | D69: 台新銀行 | E69: HDS AMS 硬體設備維護 | G69: 100.09.01 | H69: 100.09.01 | I69: 101.08.31 | J69: 1 | K69: =1333333/1000 -> 1333.333 | L69: =941800/1000 -> 941.8 | M69: =69390/1000 -> 69.39 | O69: =K69-L69 -> 391.533 | P69: =K69 -> 1333.333 | Q69: =O69 -> 391.533 | S69: =1333333/1000/12 -> 111.1110833 | T69: =941800/12/1000 -> 78.48333333 | U69: =69390/12/1000 -> 5.7825 | V69: =S69-T69 -> 32.62775
A70: BTC11111120007 | C70: 洪瑞卿 | D70: 新光人壽 | E70: EPM系統維護服務 | G70: 101.01.06 | H70: 101.01.01 | I70: 101.12.31 | J70: 1 | K70: =100000/1000 -> 100 | L70: =86142.84/1000 -> 86.14284 | O70: =K70-L70 -> 13.85716 | P70: 100 | Q70: =O70 -> 13.85716 | S70: =100000/1000/12 -> 8.333333333 | T70: =86142.84/1000/12 -> 7.17857 | V70: 1.154763333
A71: BTC11112010006 | C71: 林平三 | D71: 高睿科技 | E71: RIMAGE 8100設備 | G71: 101.01.10 | H71: 101.01.01 | I71: 101.12.31 | J71: 1 | K71: =1047619/1000 -> 1047.619 | M71: =733333/1000 -> 733.333 | O71: =K71-L71 -> 1047.619 | P71: 1047.619 | Q71: =O71 -> 1047.619 | S71: =1047619/1000/12 -> 87.30158333 | U71: =733333/1000/12 -> 61.11108333 | V71: 87.30158333
A72: BTC11112020012 | C72: 尚榮芬 | D72: 精誠 | E72: 警政署維護 | G72: 101.02.22 | H72: 101.01.01 | I72: 101.12.31 | J72: 1 | K72: =1200000/1000 -> 1200 | M72: =300000/1000 -> 300 | O72: =K72 -> 1200 | P72: 1200 | Q72: =P72 -> 1200 | S72: =1200000/1000/12 -> 100 | T72: 40 | U72: =300000/1000/12 -> 25 | V72: 60
A73: BKC1111112005 | C73: 鍾長志 | D73: 中華電信南分 | E73: 南北帳務整合系統資料異地備援 | G73: 101.02.13 | H73: 101.01.16 | I73: 103.01.22 | J73: 1 | K73: =8571429/1000 -> 8571.429 | L73: =6914286/1000 -> 6914.286 | O73: =K73-L73 -> 1657.143 | P73: 8571.429 | Q73: =O73 -> 1657.143 | S73: =8571429/1000/24 -> 357.142875 | T73: =6914286/1000/24 -> 288.09525 | V73: =S73-T73 -> 69.047625 | W73: 掛在美得康
A74: BKC1111112005 | C74: 鍾長志 | D74: 中華電信北分 | E74: 南北帳務整合系統資料異地備援 | G74: 101.02.13 | H74: 101.01.11 | I74: 102.12.16 | J74: 1 | K74: =4952381/1000 -> 4952.381 | L74: =1000000/1000 -> 1000 | O74: =K74-L74 -> 3952.381 | P74: 4952.381 | Q74: =O74 -> 3952.381 | S74: =4952381/1000/23 -> 215.320913 | T74: =1000000/1000/23 -> 43.47826087 | V74: =S74-T74 -> 171.8426522 | W74: 掛在美得康
A77: 7月小計 | S77: =SUM(S68:S76) -> 942.5431214 | T77: =SUM(T68:T76) -> 497.2354142 | U77: =SUM(U68:U76) -> 91.89358333 | V77: =SUM(V68:V76) -> 445.3077072
A78: 8月
A79: BTC11110110005 | C79: 尚榮芬 | D79: 中華電信北區 | E79: LDBMS HDS 9970 設備維護 | G79: 99.12.17 | H79: 100.01.01 | I79: 101.12.31 | J79: 1 | K79: =1520000/1000 -> 1520 | M79: =100000/1000 -> 100 | O79: =K79 -> 1520 | P79: =O79/2 -> 760 | Q79: =P79 -> 760 | S79: =1520000/1000/24 -> 63.33333333 | T79: 40 | V79: =S79-T79 -> 23.33333333
A80: BTC11111080022 | C80: 洪瑞卿 | D80: 台新銀行 | E80: HDS AMS 硬體設備維護 | G80: 100.09.01 | H80: 100.09.01 | I80: 101.08.31 | J80: 1 | K80: =1333333/1000 -> 1333.333 | L80: =941800/1000 -> 941.8 | M80: =69390/1000 -> 69.39 | O80: =K80-L80 -> 391.533 | P80: =K80 -> 1333.333 | Q80: =O80 -> 391.533 | S80: =1333333/1000/12 -> 111.1110833 | T80: =941800/12/1000 -> 78.48333333 | U80: =69390/12/1000 -> 5.7825 | V80: =S80-T80 -> 32.62775
A81: BTC11111120007 | C81: 洪瑞卿 | D81: 新光人壽 | E81: EPM系統維護服務 | G81: 101.01.06 | H81: 101.01.01 | I81: 101.12.31 | J81: 1 | K81: =100000/1000 -> 100 | L81: =86142.84/1000 -> 86.14284 | O81: =K81-L81 -> 13.85716 | P81: 100 | Q81: =O81 -> 13.85716 | S81: =100000/1000/12 -> 8.333333333 | T81: =86142.84/1000/12 -> 7.17857 | V81: 1.154763333
A82: BTC11112010006 | C82: 林平三 | D82: 高睿科技 | E82: RIMAGE 8100設備 | G82: 101.01.10 | H82: 101.01.01 | I82: 101.12.31 | J82: 1 | K82: =1047619/1000 -> 1047.619 | M82: =733333/1000 -> 733.333 | O82: =K82-L82 -> 1047.619 | P82: 1047.619 | Q82: =O82 -> 1047.619 | S82: =1047619/1000/12 -> 87.30158333 | U82: =733333/1000/12 -> 61.11108333 | V82: 87.30158333
A83: BTC11112020012 | C83: 尚榮芬 | D83: 精誠 | E83: 警政署維護 | G83: 101.02.22 | H83: 101.01.01 | I83: 101.12.31 | J83: 1 | K83: =1200000/1000 -> 1200 | M83: =300000/1000 -> 300 | O83: =K83 -> 1200 | P83: 1200 | Q83: =P83 -> 1200 | S83: =1200000/1000/12 -> 100 | T83: 40 | U83: =300000/1000/12 -> 25 | V83: 60
A84: BKC1111112005 | C84: 鍾長志 | D84: 中華電信南分 | E84: 南北帳務整合系統資料異地備援 | G84: 101.02.13 | H84: 101.01.16 | I84: 103.01.22 | J84: 1 | K84: =8571429/1000 -> 8571.429 | L84: =6914286/1000 -> 6914.286 | O84: =K84-L84 -> 1657.143 | P84: 8571.429 | Q84: =O84 -> 1657.143 | S84: =8571429/1000/24 -> 357.142875 | T84: =6914286/1000/24 -> 288.09525 | V84: =S84-T84 -> 69.047625 | W84: 掛在美得康
A85: BKC1111112005 | C85: 鍾長志 | D85: 中華電信北分 | E85: 南北帳務整合系統資料異地備援 | G85: 101.02.13 | H85: 101.01.11 | I85: 102.12.16 | J85: 1 | K85: =4952381/1000 -> 4952.381 | L85: =1000000/1000 -> 1000 | O85: =K85-L85 -> 3952.381 | P85: 4952.381 | Q85: =O85 -> 3952.381 | S85: =4952381/1000/23 -> 215.320913 | T85: =1000000/1000/23 -> 43.47826087 | V85: =S85-T85 -> 171.8426522 | W85: 掛在美得康
A87: 8月小計 | S87: =SUM(S79:S86) -> 942.5431214 | T87: =SUM(T79:T86) -> 497.2354142 | U87: =SUM(U79:U86) -> 91.89358333 | V87: =SUM(V79:V86) -> 445.3077072
A88: 9月
A89: BTC11110110005 | C89: 尚榮芬 | D89: 中華電信北區 | E89: LDBMS HDS 9970 設備維護 | G89: 99.12.17 | H89: 100.01.01 | I89: 101.12.31 | J89: 1 | K89: =1520000/1000 -> 1520 | M89: =100000/1000 -> 100 | O89: =K89 -> 1520 | P89: =O89/2 -> 760 | Q89: =P89 -> 760 | S89: =1520000/1000/24 -> 63.33333333 | T89: 40 | V89: =S89-T89 -> 23.33333333
A90: BTC11111120007 | C90: 洪瑞卿 | D90: 新光人壽 | E90: EPM系統維護服務 | G90: 101.01.06 | H90: 101.01.01 | I90: 101.12.31 | J90: 1 | K90: =100000/1000 -> 100 | L90: =86142.84/1000 -> 86.14284 | O90: =K90-L90 -> 13.85716 | P90: =K90 -> 100 | Q90: =O90 -> 13.85716 | S90: =100000/1000/12 -> 8.333333333 | T90: =86142.84/1000/12 -> 7.17857 | V90: =S90-T90 -> 1.154763333
A91: BTC11112010006 | C91: 林平三 | D91: 高睿科技 | E91: RIMAGE 8100設備 | G91: 101.01.10 | H91: 101.01.01 | I91: 101.12.31 | J91: 1 | K91: =1047619/1000 -> 1047.619 | M91: =733333/1000 -> 733.333 | O91: =K91-L91 -> 1047.619 | P91: =K91 -> 1047.619 | Q91: =O91 -> 1047.619 | S91: =1047619/1000/12 -> 87.30158333 | U91: =733333/1000/12 -> 61.11108333 | V91: 87.30158333
A92: BTC11112020012 | C92: 尚榮芬 | D92: 精誠 | E92: 警政署維護 | G92: 101.02.22 | H92: 101.01.01 | I92: 101.12.31 | J92: 1 | K92: =1200000/1000 -> 1200 | M92: =300000/1000 -> 300 | O92: =K92 -> 1200 | P92: =K92 -> 1200 | Q92: =P92 -> 1200 | S92: =1200000/1000/12 -> 100 | T92: 40 | U92: =300000/1000/12 -> 25 | V92: 60
A93: BKC1111112005 | C93: 鍾長志 | D93: 中華電信南分 | E93: 南北帳務整合系統資料異地備援 | G93: 101.02.13 | H93: 101.01.16 | I93: 103.01.22 | J93: 1 | K93: =8571429/1000 -> 8571.429 | L93: =6914286/1000 -> 6914.286 | O93: =K93-L93 -> 1657.143 | P93: =K93 -> 8571.429 | Q93: =O93 -> 1657.143 | S93: =8571429/1000/24 -> 357.142875 | T93: =6914286/1000/24 -> 288.09525 | V93: =S93-T93 -> 69.047625 | W93: 掛在美得康
A94: BKC1111112005 | C94: 鍾長志 | D94: 中華電信北分 | E94: 南北帳務整合系統資料異地備援 | G94: 101.02.13 | H94: 101.01.11 | I94: 102.12.16 | J94: 1 | K94: =4952381/1000 -> 4952.381 | L94: =1000000/1000 -> 1000 | O94: =K94-L94 -> 3952.381 | P94: =K94 -> 4952.381 | Q94: =O94 -> 3952.381 | S94: =4952381/1000/23 -> 215.320913 | T94: =1000000/1000/23 -> 43.47826087 | V94: =S94-T94 -> 171.8426522 | W94: 掛在美得康
A96: 9月小計 | S96: =SUM(S89:S95) -> 831.432038 | T96: =SUM(T89:T95) -> 418.7520809 | U96: =SUM(U89:U95) -> 86.11108333 | V96: =SUM(V89:V95) -> 412.6799572
A97: 10月
A98: BTC11110110005 | C98: 尚榮芬 | D98: 中華電信北區 | E98: LDBMS HDS 9970 設備維護 | G98: 99.12.17 | H98: 100.01.01 | I98: 101.12.31 | J98: 1 | K98: =1520000/1000 -> 1520 | M98: =100000/1000 -> 100 | O98: =K98 -> 1520 | P98: =O98/2 -> 760 | Q98: =P98 -> 760 | S98: =1520000/1000/24 -> 63.33333333 | T98: 40 | V98: =S98-T98 -> 23.33333333
A99: BTC11111120007 | C99: 洪瑞卿 | D99: 新光人壽 | E99: EPM系統維護服務 | G99: 101.01.06 | H99: 101.01.01 | I99: 101.12.31 | J99: 1 | K99: =100000/1000 -> 100 | L99: =86142.84/1000 -> 86.14284 | O99: =K99-L99 -> 13.85716 | P99: =K99 -> 100 | Q99: =O99 -> 13.85716 | S99: =100000/1000/12 -> 8.333333333 | T99: =86142.84/1000/12 -> 7.17857 | V99: =S99-T99 -> 1.154763333
A100: BTC11112010006 | C100: 林平三 | D100: 高睿科技 | E100: RIMAGE 8100設備 | G100: 101.01.10 | H100: 101.01.01 | I100: 101.12.31 | J100: 1 | K100: =1047619/1000 -> 1047.619 | M100: =733333/1000 -> 733.333 | O100: =K100-L100 -> 1047.619 | P100: =K100 -> 1047.619 | Q100: =O100 -> 1047.619 | S100: =1047619/1000/12 -> 87.30158333 | U100: =733333/1000/12 -> 61.11108333 | V100: 87.30158333
A101: BTC11112020012 | C101: 尚榮芬 | D101: 精誠 | E101: 警政署維護 | G101: 101.02.22 | H101: 101.01.01 | I101: 101.12.31 | J101: 1 | K101: =1200000/1000 -> 1200 | M101: =300000/1000 -> 300 | O101: =K101 -> 1200 | P101: =K101 -> 1200 | Q101: =P101 -> 1200 | S101: =1200000/1000/12 -> 100 | T101: 40 | U101: =300000/1000/12 -> 25 | V101: 60
A102: BKC1111112005 | C102: 鍾長志 | D102: 中華電信南分 | E102: 南北帳務整合系統資料異地備援 | G102: 101.02.13 | H102: 101.01.16 | I102: 103.01.22 | J102: 1 | K102: =8571429/1000 -> 8571.429 | L102: =6914286/1000 -> 6914.286 | O102: =K102-L102 -> 1657.143 | P102: =K102 -> 8571.429 | Q102: =O102 -> 1657.143 | S102: =8571429/1000/24 -> 357.142875 | T102: =6914286/1000/24 -> 288.09525 | V102: =S102-T102 -> 69.047625 | W102: 掛在美得康
A103: BKC1111112005 | C103: 鍾長志 | D103: 中華電信北分 | E103: 南北帳務整合系統資料異地備援 | G103: 101.02.13 | H103: 101.01.11 | I103: 102.12.16 | J103: 1 | K103: =4952381/1000 -> 4952.381 | L103: =1000000/1000 -> 1000 | O103: =K103-L103 -> 3952.381 | P103: =K103 -> 4952.381 | Q103: =O103 -> 3952.381 | S103: =4952381/1000/23 -> 215.320913 | T103: =1000000/1000/23 -> 43.47826087 | V103: =S103-T103 -> 171.8426522 | W103: 掛在美得康
A105: 10月小計 | S105: =SUM(S98:S104) -> 831.432038 | T105: =SUM(T98:T104) -> 418.7520809 | U105: =SUM(U98:U104) -> 86.11108333 | V105: =SUM(V98:V104) -> 412.6799572
A106: 11月
A107: BTC11110110005 | C107: 尚榮芬 | D107: 中華電信北區 | E107: LDBMS HDS 9970 設備維護 | G107: 99.12.17 | H107: 100.01.01 | I107: 101.12.31 | J107: 1 | K107: =1520000/1000 -> 1520 | M107: =100000/1000 -> 100 | O107: =K107 -> 1520 | P107: =O107/2 -> 760 | Q107: =P107 -> 760 | S107: =1520000/1000/24 -> 63.33333333 | T107: 40 | V107: =S107-T107 -> 23.33333333
A108: BTC11111120007 | C108: 洪瑞卿 | D108: 新光人壽 | E108: EPM系統維護服務 | G108: 101.01.06 | H108: 101.01.01 | I108: 101.12.31 | J108: 1 | K108: =100000/1000 -> 100 | L108: =86142.84/1000 -> 86.14284 | O108: =K108-L108 -> 13.85716 | P108: =K108 -> 100 | Q108: =O108 -> 13.85716 | S108: =100000/1000/12 -> 8.333333333 | T108: =86142.84/1000/12 -> 7.17857 | V108: =S108-T108 -> 1.154763333
A109: BTC11112010006 | C109: 林平三 | D109: 高睿科技 | E109: RIMAGE 8100設備 | G109: 101.01.10 | H109: 101.01.01 | I109: 101.12.31 | J109: 1 | K109: =1047619/1000 -> 1047.619 | M109: =733333/1000 -> 733.333 | O109: =K109-L109 -> 1047.619 | P109: =K109 -> 1047.619 | Q109: =O109 -> 1047.619 | S109: =1047619/1000/12 -> 87.30158333 | U109: =733333/1000/12 -> 61.11108333 | V109: 87.30158333
A110: BTC11112020012 | C110: 尚榮芬 | D110: 精誠 | E110: 警政署維護 | G110: 101.02.22 | H110: 101.01.01 | I110: 101.12.31 | J110: 1 | K110: =1200000/1000 -> 1200 | M110: =300000/1000 -> 300 | O110: =K110 -> 1200 | P110: =K110 -> 1200 | Q110: =P110 -> 1200 | S110: =1200000/1000/12 -> 100 | T110: 40 | U110: =300000/1000/12 -> 25 | V110: 60
A111: BKC1111112005 | C111: 鍾長志 | D111: 中華電信南分 | E111: 南北帳務整合系統資料異地備援 | G111: 101.02.13 | H111: 101.01.16 | I111: 103.01.22 | J111: 1 | K111: =8571429/1000 -> 8571.429 | L111: =6914286/1000 -> 6914.286 | O111: =K111-L111 -> 1657.143 | P111: =K111 -> 8571.429 | Q111: =O111 -> 1657.143 | S111: =8571429/1000/24 -> 357.142875 | T111: =6914286/1000/24 -> 288.09525 | V111: =S111-T111 -> 69.047625 | W111: 掛在美得康
A112: BKC1111112005 | C112: 鍾長志 | D112: 中華電信北分 | E112: 南北帳務整合系統資料異地備援 | G112: 101.02.13 | H112: 101.01.11 | I112: 102.12.16 | J112: 1 | K112: =4952381/1000 -> 4952.381 | L112: =1000000/1000 -> 1000 | O112: =K112-L112 -> 3952.381 | P112: =K112 -> 4952.381 | Q112: =O112 -> 3952.381 | S112: =4952381/1000/23 -> 215.320913 | T112: =1000000/1000/23 -> 43.47826087 | V112: =S112-T112 -> 171.8426522 | W112: 掛在美得康
A115: 11月小計 | S115: =SUM(S107:S114) -> 831.432038 | T115: =SUM(T107:T114) -> 418.7520809 | U115: =SUM(U107:U114) -> 86.11108333 | V115: =SUM(V107:V114) -> 412.6799572
A116: 12月
A117: BTC11110110005 | C117: 尚榮芬 | D117: 中華電信北區 | E117: LDBMS HDS 9970 設備維護 | G117: 99.12.17 | H117: 100.01.01 | I117: 101.12.31 | J117: 1 | K117: =1520000/1000 -> 1520 | M117: =100000/1000 -> 100 | O117: =K117 -> 1520 | P117: =O117/2 -> 760 | Q117: =P117 -> 760 | S117: =1520000/1000/24 -> 63.33333333 | T117: 40 | V117: =S117-T117 -> 23.33333333
A118: BTC11111120007 | C118: 洪瑞卿 | D118: 新光人壽 | E118: EPM系統維護服務 | G118: 101.01.06 | H118: 101.01.01 | I118: 101.12.31 | J118: 1 | K118: =100000/1000 -> 100 | L118: =86142.84/1000 -> 86.14284 | O118: =K118-L118 -> 13.85716 | P118: =K118 -> 100 | Q118: =O118 -> 13.85716 | S118: =100000/1000/12 -> 8.333333333 | T118: =86142.84/1000/12 -> 7.17857 | V118: =S118-T118 -> 1.154763333
A119: BTC11112010006 | C119: 林平三 | D119: 高睿科技 | E119: RIMAGE 8100設備 | G119: 101.01.10 | H119: 101.01.01 | I119: 101.12.31 | J119: 1 | K119: =1047619/1000 -> 1047.619 | M119: =733333/1000 -> 733.333 | O119: =K119-L119 -> 1047.619 | P119: =K119 -> 1047.619 | Q119: =O119 -> 1047.619 | S119: =1047619/1000/12 -> 87.30158333 | U119: =733333/1000/12 -> 61.11108333 | V119: 87.30158333
A120: BTC11112020012 | C120: 尚榮芬 | D120: 精誠 | E120: 警政署維護 | G120: 101.02.22 | H120: 101.01.01 | I120: 101.12.31 | J120: 1 | K120: =1200000/1000 -> 1200 | M120: =300000/1000 -> 300 | O120: =K120 -> 1200 | P120: =K120 -> 1200 | Q120: =P120 -> 1200 | S120: =1200000/1000/12 -> 100 | T120: 40 | U120: =300000/1000/12 -> 25 | V120: 60
A121: BKC1111112005 | C121: 鍾長志 | D121: 中華電信南分 | E121: 南北帳務整合系統資料異地備援 | G121: 101.02.13 | H121: 101.01.16 | I121: 103.01.22 | J121: 1 | K121: =8571429/1000 -> 8571.429 | L121: =6914286/1000 -> 6914.286 | O121: =K121-L121 -> 1657.143 | P121: =K121 -> 8571.429 | Q121: =O121 -> 1657.143 | S121: =8571429/1000/24 -> 357.142875 | T121: =6914286/1000/24 -> 288.09525 | V121: =S121-T121 -> 69.047625 | W121: 掛在美得康
A122: BKC1111112005 | C122: 鍾長志 | D122: 中華電信北分 | E122: 南北帳務整合系統資料異地備援 | G122: 101.02.13 | H122: 101.01.11 | I122: 102.12.16 | J122: 1 | K122: =4952381/1000 -> 4952.381 | L122: =1000000/1000 -> 1000 | O122: =K122-L122 -> 3952.381 | P122: =K122 -> 4952.381 | Q122: =O122 -> 3952.381 | S122: =4952381/1000/23 -> 215.320913 | T122: =1000000/1000/23 -> 43.47826087 | V122: =S122-T122 -> 171.8426522 | W122: 掛在美得康
A124: 12月小計 | S124: =SUM(S117:S123) -> 831.432038 | T124: =SUM(T117:T123) -> 418.7520809 | U124: =SUM(U117:U123) -> 86.11108333 | V124: =SUM(V117:V123) -> 412.6799572
A125: 總計 | S125: =SUM(S37,S47,S57,S66,S77,S87,S96,S105,S115,S124) -> 9938.053835 | T125: =SUM(T37,T47,T57,T66,T77,T87,T96,T105,T115,T124) -> 5069.99432 | U125: 1076.391806 | V125: 4868.059516

Sheet 銷售Backlog
A1: TC1112 - Y2011 銷售Backlog及內容分析表
A2: CRM ID | B2: YYMM進度(P/B/F)-序 | C2: Sales Rep. | D2: 合約客戶 / 夥伴 | E2: 專案名稱 | F2: 專案(產品)內容 | G2: 預計得標或是取得訂單時間 | H2: 預計交貨時間 | I2: 預計驗收時間 | J2: 信心 % | K2: CRM Win rate % | L2: 全案 銷售 總Rev.(A) | M2: 外購 外包 成本(B) | N2: 內部 人力 費用(C) | O2: 裝機及保固 成本(D) | P2: 全案 銷售 總GP (A-B-C-D) | Q2: Y2012 可認列 Rev. | R2: Y2012 可認列 GP | S2: 備註or進度說明(YYMM進度-序) | T2: Sales認列金額
T4: 認列Revenue | U4: 認列成本 | V4: 認列內部成本 | W4: 認列GP
A5: 1月
A6: BTC11111010007 | C6: 周睿騰 | D6: 零壹 | E6: 刀鋒伺服器擴充 | G6: 101.01.13 | L6: =35000/1000 -> 35 | P6: =L6-M6 -> 35 | Q6: =L6 -> 35 | R6: =35000/1000 -> 35 | T6: =35000/1000 -> 35 | W6: =T6-U6-V6 -> 35 | X6: 認1月收入，2月開發票
A7: BTC11112010002 | C7: 林平三 | D7: 警政署 | E7: RIMAGE 採購案 | G7: 101.1.04 | L7: =76000/1000 -> 76 | M7: =37053.97/1000 -> 37.05397 | P7: =L7-M7 -> 38.94603 | Q7: =L7 -> 76 | R7: =P7 -> 38.94603 | T7: =76000/1000 -> 76 | U7: =37053.97/1000 -> 37.05397 | W7: 38.94603
A8: BTC11112010004 | C8: 林平三 | D8: 法若嘉 | E8: RIMAGE 色膜 | G8: 101.01.03 | L8: =380000/1000 -> 380 | M8: =341041.45/1000 -> 341.04145 | P8: =L8-M8 -> 38.95855 | Q8: =L8 -> 380 | R8: =P8 -> 38.95855 | T8: =380000/1000 -> 380 | U8: =341041.45/1000 -> 341.04145 | W8: 38.95855
A9: BTC11112010011 | C9: 洪瑞卿 | D9: 新光產物 | E9: 教育訓練 | G9: 101.01.30 | L9: =26667/1000 -> 26.667 | P9: =26667/1000 -> 26.667 | Q9: 26.667 | R9: =P9 -> 26.667 | T9: =26667/1000 -> 26.667 | U9: 0 | V9: 0 | W9: 26.667
A10: 1月小計 | T10: =SUM(T6:T9) -> 517.667 | U10: =SUM(U6:U9) -> 378.09542 | V10: =SUM(V6:V9) -> 0 | W10: =SUM(W6:W9) -> 139.57158
A11: 2月
A12: BTC11112010003 | C12: 林平三 | D12: 元鎂 | E12: 檢修費用 | G12: 101.01.02 | L12: =47717/1000 -> 47.717 | M12: =11333/1000 -> 11.333 | N12: =20000/1000 -> 20 | P12: =L12-M12 -> 36.384 | Q12: =L12 -> 47.717 | R12: =P12 -> 36.384 | T12: =47717/1000 -> 47.717 | U12: =11333/1000 -> 11.333 | V12: =20000/1000 -> 20 | W12: =T12-U12-V12 -> 16.384
A17: 2月小計 | T17: =SUM(T12:T16) -> 47.717 | U17: =SUM(U12:U16) -> 11.333 | V17: =SUM(V12:V16) -> 20 | W17: =SUM(W12:W16) -> 16.384
A18: 3月
A19: BTC11111080020 | C19: 周睿騰 | D19: 彰化銀行 | E19: 網銀展示及過版覆測環境建置 | G19: 100.12.28 | L19: =1333333/1000 -> 1333.333 | M19: =1234197/1000 -> 1234.197 | P19: =L19-M19 -> 99.136 | Q19: =L19 -> 1333.333 | R19: =P19 -> 99.136 | T19: =1333333/1000 -> 1333.333 | U19: =1234197/1000 -> 1234.197 | W19: =T19-U19-V19 -> 99.136
A20: BTC11111120003 | C20: 洪瑞卿 | D20: 新光產物 | E20: Fortigte MA專案 | G20: 101.02.22 | L20: =223810/1000 -> 223.81 | M20: =193618.8/1000 -> 193.6188 | P20: =L20-M20 -> 30.1912 | Q20: =L20 -> 223.81 | R20: =P20 -> 30.1912 | T20: =223810/1000 -> 223.81 | U20: =193618.8/1000 -> 193.6188 | W20: =T20-U20 -> 30.1912
A21: BTC11111090026 | C21: 張凱 | D21: 美得康 | E21: 中帳儲存設備增購案 | G21: 101.02.14 | L21: =8571429/1000 -> 8571.429 | M21: =7907143/1000 -> 7907.143 | N21: =50000/1000 -> 50 | P21: 214 | Q21: =L21 -> 8571.429 | R21: =P21 -> 214 | T21: =L21 -> 8571.429 | U21: 8357 | V21: =N21 -> 50 | W21: =T21-U21 -> 214.429
A22: BTC11112010005 | C22: 周睿騰 | D22: 彰化商業銀行 | E22: *開發及測試環境軟硬體採購 | G22: 40961 | I22: 2012-03-31 | K22: 0.6 | L22: 220 | P22: 34 | Q22: 220 | R22: 34 | T22: 220 | W22: 34 | AB22: 2012-02-23T10:05:34 | AC22: 2012-01-09T13:54:31
A23: BTC11112020008 | C23: 周睿騰 | D23: 彰化商業銀行 | E23: *行動網銀展示設備 | G23: 40960 | I23: 2012-03-31 | K23: 0.6 | L23: 38 | P23: 2 | Q23: 38 | R23: 2 | T23: 38 | W23: 2 | AB23: 2012-02-22T18:08:03 | AC23: 2012-02-09T17:02:39
C24: 尚容芬 | D24: 美得康 | E24: 中帳儲存設備增購案 | G24: 101.02.14 | L24: 4762 | M24: 4000 | P24: =L24-M24 -> 762 | Q24: =L24 -> 4762 | R24: =P24 -> 762 | T24: =L24 -> 4762 | U24: =M24 -> 4000 | V24: =N24 -> 0 | W24: =T24-U24 -> 762
A25: 3月小計 | T25: =SUM(T19:T24) -> 15148.572 | U25: =SUM(U19:U24) -> 13784.8158 | V25: =SUM(V19:V24) -> 50 | W25: =SUM(W19:W24) -> 1141.7562
A26: 4月
A27: BKC11111090003 | C27: 鍾長志 | D27: 金門酒廠實業股份有限公司 | E27: BPR/ERP先期規劃案 | G27: 40842 | I27: 2011-12-30 | K27: 0.7 | L27: 7314 | P27: 6629 | Q27: 4535 | R27: 4110 | T27: 1463 | W27: 1326
A34: 4月小計 | T34: =SUM(T27:T33) -> 1463 | U34: =SUM(U27:U33) -> 0 | V34: =SUM(V27:V33) -> 0 | W34: =SUM(W27:W33) -> 1326
A35: 5月
A42: 5月小計 | T42: =SUM(T36:T41) -> 0 | U42: =SUM(U36:U41) -> 0 | V42: =SUM(V36:V41) -> 0 | W42: =SUM(W36:W41) -> 0
A43: 6月
A44: BKC11111100001 | C44: 鍾長志 | D44: 臺北縣政府消防局 | E44: 救災救護指揮中心委外規劃設計資訊系統 | G44: 40844 | I44: 2011-12-30 | K44: 0.7 | L44: 5038 | P44: 4887 | Q44: 1008 | R44: 977 | T44: 1008 | W44: 977
A49: 6月小計 | T49: =SUM(T44:T48) -> 1008 | U49: =SUM(U44:U48) -> 0 | V49: =SUM(V44:V48) -> 0 | W49: =SUM(W44:W48) -> 977
A50: 7月
A51: BKC11111090003 | C51: 鍾長志 | D51: 金門酒廠實業股份有限公司 | E51: BPR/ERP先期規劃案 | G51: 40842 | I51: 2011-12-30 | K51: 0.7 | L51: 7314 | P51: 6629 | Q51: 4535 | R51: 4110 | T51: 2194 | W51: 1989
A52: BTC11110030016 | C52: 洪瑞卿 | D52: 台新國際商業銀行股份有限公司 | E52: 9980汰換案 | G52: 40889 | I52: 2011-12-15 | K52: 0.8 | L52: 38667 | P52: 14183 | Q52: 10000 | R52: 3668 | T52: 10000 | W52: 1000
A56: 7月小計 | T56: =SUM(T51:T55) -> 12194 | U56: =SUM(U51:U55) -> 0 | V56: 0 | W56: 2989
A63: 8月小計 | T63: =SUM(T58:T62) -> 0 | U63: =SUM(U58:U62) -> 0 | V63: =SUM(V58:V62) -> 0 | W63: =SUM(W58:W62) -> 0
A64: 9月
A71: 9月小計 | T71: =SUM(T65:T70) -> 0 | U71: =SUM(U65:U70) -> 0 | V71: =SUM(V65:V70) -> 0 | W71: =SUM(W65:W70) -> 0
A72: 10月
A79: 10月小計 | T79: =SUM(T73:T78) -> 0 | U79: =SUM(U73:U78) -> 0 | V79: 0 | W79: 0
A80: 11月
A87: 11月小計 | T87: =SUM(T81:T86) -> 0 | U87: =SUM(U81:U86) -> 0 | V87: 0 | W87: 0
A88: 12月
A89: BKC11111090003 | C89: 鍾長志 | D89: 金門酒廠實業股份有限公司 | E89: BPR/ERP先期規劃案 | G89: 40842 | I89: 2011-12-30 | K89: 0.7 | L89: 7314 | P89: 6629 | Q89: 4535 | R89: 4110 | T89: 878 | W89: 795
A95: 12月小計 | T95: =SUM(T89:T94) -> 878 | U95: =SUM(U89:U94) -> 0 | V95: =SUM(V89:V94) -> 0 | W95: =SUM(W89:W94) -> 795
A96: 總計 | T96: =SUM(T25,T34,T42,T49,T56,T63,T71,T79,T87,T95) -> 30691.572 | U96: =SUM(U25,U34,U42,U49,U56,U63,U71,U79,U87,U95) -> 13784.8158 | V96: 50 | W96: 7228.7562

Sheet Forecast
A1: TC111 - Y2012 Forecast銷售內容分析表
A2: CRM ID | B2: YYMM進度(P/B/F)-序 | C2: Sales Rep. | D2: 合約客戶 / 夥伴 | E2: 專案名稱 | F2: 專案(產品)內容 | G2: 預計得標或是取得訂單時間 | H2: 預計交貨時間 | I2: 預計驗收時間 | J2: 信心 % | K2: CRM Win rate % | L2: 全案 銷售 總Rev.(A) | M2: 外購 外包 成本(B) | N2: 內部 人力 費用(C) | O2: 裝機及保固 成本(D) | P2: 全案銷售 總GP (A-B-C-D) | Q2: Y2012 可認列 Rev. | R2: Y2012 可認列 GP | S2: 進度說明 | T2: Sales認列金額 | X2: 維護認列金額
T4: 認列Revenue | U4: 認列成本 | V4: 認列內部成本 | W4: 認列GP | X4: 認列Revenue | Y4: 認列成本 | Z4: 認列內部成本 | AA4: 認列GP
A5: 1月
T7: =SUM(Q7) -> 0 | W7: =SUM(R7) -> 0
A8: 1月小計 | T8: =SUM(T6:T7) -> 0 | U8: =SUM(U6:U7) -> 0 | V8: =SUM(V6:V7) -> 0 | W8: =SUM(W6:W7) -> 0 | X8: =SUM(X6:X7) -> 0 | AA8: =SUM(AA6:AA7) -> 0
A9: 2月
A14: 2月小計 | T14: =SUM(T10:T13) -> 0 | U14: 0 | V14: 0 | W14: 0 | X14: 0 | Y14: 0 | Z14: 0 | AA14: 0
A15: 3月
A16: OTC11111090014 | C16: 洪瑞卿 | D16: 台新國際商業銀行股份有限公司 | E16: *台新HDS 3年維護案 | G16: 2012-02-20 | I16: 2012-02-20 | K16: 0.5 | L16: 32857 | P16: 16429 | Q16: 12222 | R16: 6111 | T16: 3000 | W16: 1200 | AB16: 2012-01-30T12:23:59 | AC16: 2011-09-19T15:11:45
A17: OTC11111110008 | C17: 洪瑞卿 | D17: 上海商業儲蓄銀行股份有限公司 | E17: *海銀HDS NSC55維護(第一階段) | G17: 2012-02-29 | I17: 2012-03-02 | K17: 0.4 | L17: 250 | P17: 25 | Q17: 250 | R17: 25 | T17: 63 | W17: 6 | AB17: 2012-01-30T11:19:49 | AC17: 2011-11-28T12:01:59
A18: OTC11110030007 | C18: 洪瑞卿 | D18: 上海商業儲蓄銀行股份有限公司 | E18: *NCS55擴充(VM專案) | G18: 2012-02-28 | I18: 2012-02-28 | K18: 0.4 | L18: 1500 | P18: 675 | Q18: 1500 | R18: 675 | T18: 1500 | W18: 675 | AB18: 2012-01-30T12:31:56 | AC18: 2010-03-17T10:55:45
A19: OTC11110100006 | C19: 洪瑞卿 | D19: 上海商業儲蓄銀行股份有限公司 | E19: *機房搬遷 | G19: 2012-02-28 | I19: 2012-02-28 | K19: 0.4 | L19: 150 | P19: 135 | Q19: 150 | R19: 135 | T19: 150 | W19: 135 | AB19: 2012-01-30T12:34:55 | AC19: 2010-10-27T18:47:45
A20: OKC11210030014 | C20: 林平三 | D20: 宜誠資訊股份有限公司 | E20: *移民署入出境管理局 | G20: 2012-03-01 | I20: 2012-03-30 | K20: 0.4 | L20: 366 | P20: 55 | Q20: 366 | R20: 55 | T20: 366 | W20: 55 | AB20: 2012-02-02T13:07:13 | AC20: 2010-03-30T22:35:10
A21: OTC11111030011 | C21: 林平三 | D21: 元鎂科技股份有限公司 | E21: *中國信託7100換購 | G21: 2012-03-15 | I21: 2012-03-30 | K21: 0.4 | L21: 336 | P21: 77 | Q21: 336 | R21: 77 | T21: 336 | W21: 77 | AB21: 2012-02-06T14:16:47 | AC21: 2011-03-15T16:26:43
A26: 3月小計 | T26: =SUM(T16:T25) -> 5415 | U26: 0 | V26: 0 | W26: 2148 | X26: 0 | Y26: 0 | Z26: 0 | AA26: 0
A27: 4月
A28: OTC11112010008 | C28: 葉俊毅 | D28: 碩沛科技 | E28: *IBM x3650M3 Server 銷售 | G28: 2012-03-30 | I28: 2012-04-30 | K28: 0.4 | L28: 360 | P28: 36 | Q28: 360 | R28: 36 | T28: 360 | W28: 36 | AB28: 2012-02-17T17:30:07 | AC28: 2012-01-18T12:24:02
A29: OTC11111100002 | C29: 黎育誠 | D29: 吉恩立數位科技股份有限公司 | E29: 網頁應用程式防火牆採購案 | G29: 2012-03-30 | I29: 2012-04-30 | K29: 0.4 | L29: 3000 | P29: 300 | Q29: 3000 | R29: 300 | T29: 3000 | W29: 300 | AB29: 2012-01-03T10:28:21 | AC29: 2011-10-13T14:55:25
A30: OTC11111090014 | C30: 洪瑞卿 | D30: 台新國際商業銀行股份有限公司 | E30: *台新HDS 3年維護案 | G30: 2012-02-20 | I30: 2012-02-20 | K30: 0.5 | L30: 32857 | P30: 16429 | Q30: 12222 | R30: 6111 | T30: 1111 | W30: 556 | AB30: 2012-01-30T12:23:59 | AC30: 2011-09-19T15:11:45
A33: 4月小計 | T33: =SUM(T28:T32) -> 4471 | U33: =SUM(U28:U32) -> 0 | V33: 0 | W33: 892 | X33: =SUM(X24:X27) -> 0 | Y33: =SUM(Y24:Y27) -> 0 | Z33: =SUM(Z24:Z27) -> 0 | AA33: =SUM(AA24:AA27) -> 0
A34: 5月
A35: OTC11112010001 | C35: 林平三 | D35: 基嘉科技股份有限公司 | E35: *泰山職訓中心教學器材採購 | G35: 2012-05-01 | I35: 2012-05-31 | K35: 0.4 | L35: 720 | P35: 144 | Q35: 720 | R35: 144 | T35: 720 | W35: 144 | AB35: 2012-02-13T14:39:12 | AC35: 2012-01-03T16:45:40
A36: OKC11210070007 | C36: 張凱 | D36: 群益金融集團 | E36: *資訊安全強化案 | G36: 2012-04-30 | I36: 2012-05-31 | K36: 0.4 | L36: 7000 | P36: 700 | Q36: 7000 | R36: 700 | T36: 7000 | W36: 700 | AB36: 2012-02-13T14:47:46 | AC36: 2010-07-18T01:51:22
A37: OTC11111090014 | C37: 洪瑞卿 | D37: 台新國際商業銀行股份有限公司 | E37: *台新HDS 3年維護案 | G37: 2012-02-20 | I37: 2012-02-20 | K37: 0.5 | L37: 32857 | P37: 16429 | Q37: 12222 | R37: 6111 | T37: 1111 | W37: 556 | AB37: 2012-01-30T12:23:59 | AC37: 2011-09-19T15:11:45
A39: 5月小計 | T39: =SUM(T35:T38) -> 8831 | U39: =SUM(U35:U38) -> 0 | V39: =SUM(V35:V38) -> 0 | W39: =SUM(W35:W38) -> 1400 | X39: =SUM(X33:X34) -> 0 | Y39: =SUM(Y33:Y34) -> 0 | Z39: =SUM(Z33:Z34) -> 0 | AA39: =SUM(AA33:AA34) -> 0
A40: 6月
A41: OTC11111110008 | C41: 洪瑞卿 | D41: 上海商業儲蓄銀行股份有限公司 | E41: *海銀HDS NSC55維護(第一階段) | G41: 2012-02-29 | I41: 2012-03-02 | K41: 0.4 | L41: 250 | P41: 25 | Q41: 250 | R41: 25 | T41: 63 | W41: 6 | AB41: 2012-01-30T11:19:49 | AC41: 2011-11-28T12:01:59
A42: OTC11111060005 | C42: 洪瑞卿 | D42: 經濟部 | E42: 政府電子化 | G42: 2012-03-12 | I42: 2012-06-20 | K42: 0.4 | L42: 9000 | P42: 900 | Q42: 9000 | R42: 900 | T42: 9000 | W42: 900 | AB42: 2012-01-05T14:18:49 | AC42: 2011-06-02T14:51:27
A43: OTC11112020003 | C43: 林平三 | D43: 基嘉科技股份有限公司 | E43: *宜蘭縣政府公文影像備份 | G43: 2012-06-29 | I43: 2012-06-29 | K43: 0.4 | L43: 318 | P43: 64 | Q43: 318 | R43: 64 | T43: 318 | W43: 64 | AB43: 2012-02-03T22:08:57 | AC43: 2012-02-03T22:08:57
A44: OTC11112020004 | C44: 林平三 | D44: 美得康科技股份有限公司 | E44: *榮總醫療影像備份 | G44: 2012-06-29 | I44: 2012-06-29 | K44: 0.4 | L44: 802 | P44: 200 | Q44: 802 | R44: 200 | T44: 802 | W44: 200 | AB44: 2012-02-20T13:59:40 | AC44: 2012-02-03T22:14:59
A45: OTC11111010006 | C45: 周睿騰 | D45: 彰化銀行國際營運處 | E45: 伺服器自我安全防護系統 | G45: 2012-06-30 | I45: 2012-06-30 | K45: 0.4 | L45: 3500 | P45: 350 | Q45: 3500 | R45: 350 | S45: 優先取得內部需求文件，並可提出建議方案 | T45: 3500 | W45: 350 | AB45: 2011-11-08T12:22:36 | AC45: 2011-01-07T16:58:29
A46: OTC11111010019 | C46: 周睿騰 | D46: 台北自來水事業處 | E46: *虛擬化環境建置 | G46: 2012-04-30 | I46: 2012-06-30 | K46: 0.4 | L46: 2000 | P46: 200 | Q46: 2000 | R46: 200 | T46: 2000 | W46: 200 | AB46: 2012-02-07T20:57:08 | AC46: 2011-01-10T14:53:07
A47: OTC11111090014 | C47: 洪瑞卿 | D47: 台新國際商業銀行股份有限公司 | E47: *台新HDS 3年維護案 | G47: 2012-02-20 | I47: 2012-02-20 | K47: 0.5 | L47: 32857 | P47: 16429 | Q47: 12222 | R47: 6111 | T47: 1111 | W47: 556 | AB47: 2012-01-30T12:23:59 | AC47: 2011-09-19T15:11:45
A48: OTC11111010003 | C48: 尚榮芬 | D48: 中華電信股份有限公司 台灣北區電信分公司 | E48: CHT-N Billing CCBS 磁碟機案 | F48: CCBS系統汰換 | G48: 2012-03-31 | I48: 2012-03-31 | K48: 0.4 | L48: 14000 | P48: 2100 | Q48: 14000 | R48: 2100 | S48: CHT-N內部討論中 | T48: 14000 | W48: 2100 | AB48: 2012-01-02T09:45:24 | AC48: 2011-01-07T12:16:03
A50: 6月小計 | T50: =SUM(T41:T49) -> 30794 | U50: =SUM(U41:U49) -> 0 | V50: =SUM(V41:V49) -> 0 | W50: =SUM(W41:W49) -> 4376 | X50: =SUM(X35:X40) -> 0 | Y50: =SUM(Y35:Y40) -> 0 | Z50: =SUM(Z35:Z40) -> 0 | AA50: =SUM(AA35:AA40) -> 0
A51: 7月
A52: OTC11111090014 | C52: 洪瑞卿 | D52: 台新國際商業銀行股份有限公司 | E52: *台新HDS 3年維護案 | G52: 2012-02-20 | I52: 2012-02-20 | K52: 0.5 | L52: 32857 | P52: 16429 | Q52: 12222 | R52: 6111 | T52: 1111 | W52: 556 | AB52: 2012-01-30T12:23:59 | AC52: 2011-09-19T15:11:45
A55: 7月小計 | T55: =SUM(T52:T54) -> 1111 | U55: =SUM(U52:U54) -> 0 | V55: 0 | W55: 556 | X55: =SUM(X52:X52) -> 0 | Y55: 0 | Z55: 0 | AA55: 0
A56: 8月
A57: OTC11111090014 | C57: 洪瑞卿 | D57: 台新國際商業銀行股份有限公司 | E57: *台新HDS 3年維護案 | G57: 2012-02-20 | I57: 2012-02-20 | K57: 0.5 | L57: 32857 | P57: 16429 | Q57: 12222 | R57: 6111 | T57: 1111 | W57: 556 | AB57: 2012-01-30T12:23:59 | AC57: 2011-09-19T15:11:45
A58: OTC11111030031 | C58: 林平三 | D58: 大猩猩科技股份有限公司 | E58: *中華電信 HiNet 網路偵查系統建置計畫 | G58: 2012-08-10 | I58: 2012-08-10 | K58: 0.4 | L58: 3120 | P58: 1030 | Q58: 3120 | R58: 1030 | T58: 3120 | W58: 1030 | AB58: 2012-02-20T14:07:54 | AC58: 2011-03-30T21:08:23
A59: OTC11111080024 | C59: 林平三 | D59: 基嘉科技股份有限公司 | E59: *基隆市警局公文檔案管理系統 | G59: 2012-07-31 | I59: 2012-08-31 | K59: 0.4 | L59: 366 | P59: 106 | Q59: 366 | R59: 106 | T59: 366 | W59: 106 | AB59: 2012-02-13T14:34:33 | AC59: 2011-08-29T09:58:41
A62: 8月小計 | T62: =SUM(T57:T61) -> 4597 | U62: =SUM(U57:U61) -> 0 | V62: 0 | W62: 1692 | X62: 0 | Y62: 0 | Z62: 0 | AA62: 0
A63: 9月
A64: OTC11111090014 | C64: 洪瑞卿 | D64: 台新國際商業銀行股份有限公司 | E64: *台新HDS 3年維護案 | G64: 2012-02-20 | I64: 2012-02-20 | K64: 0.5 | L64: 32857 | P64: 16429 | Q64: 12222 | R64: 6111 | T64: 1111 | W64: 556 | AB64: 2012-01-30T12:23:59 | AC64: 2011-09-19T15:11:45
A65: OTC11111110008 | C65: 洪瑞卿 | D65: 上海商業儲蓄銀行股份有限公司 | E65: *海銀HDS NSC55維護(第一階段) | G65: 2012-02-29 | I65: 2012-03-02 | K65: 0.4 | L65: 250 | P65: 25 | Q65: 250 | R65: 25 | T65: 63 | W65: 6 | AB65: 2012-01-30T11:19:49 | AC65: 2011-11-28T12:01:59
A66: OTC11111030009 | C66: 張凱 | D66: 中華電信股份有限公司 台灣南區電信分公司 | E66: *CHT-S BCM軟體購案 | G66: 2012-06-29 | I66: 2012-06-29 | K66: 0.4 | L66: 3000 | P66: 450 | Q66: 3000 | R66: 450 | T66: 3000 | W66: 450 | AB66: 2012-02-03T17:12:13 | AC66: 2011-03-15T10:43:26
A68: 9月小計 | T68: =SUM(T64:T67) -> 4174 | U68: =SUM(U64:U67) -> 0 | V68: 0 | W68: 1012 | X68: =SUM(X62:X63) -> 0 | Y68: =SUM(Y62:Y63) -> 0 | Z68: =SUM(Z62:Z63) -> 0 | AA68: =SUM(AA62:AA63) -> 0
A69: 10月
A70: OTC11111090014 | C70: 洪瑞卿 | D70: 台新國際商業銀行股份有限公司 | E70: *台新HDS 3年維護案 | G70: 2012-02-20 | I70: 2012-02-20 | K70: 0.5 | L70: 32857 | P70: 16429 | Q70: 12222 | R70: 6111 | T70: 1111 | W70: 556 | AB70: 2012-01-30T12:23:59 | AC70: 2011-09-19T15:11:45
A74: 10月小計 | T74: =SUM(T70:T73) -> 1111 | U74: =SUM(U70:U73) -> 0 | V74: 0 | W74: 556 | X74: =SUM(X73:X73) -> 0 | Y74: 0 | Z74: 0 | AA74: 0
A75: 11月
A76: OTC11111090014 | C76: 洪瑞卿 | D76: 台新國際商業銀行股份有限公司 | E76: *台新HDS 3年維護案 | G76: 2012-02-20 | I76: 2012-02-20 | K76: 0.5 | L76: 32857 | P76: 16429 | Q76: 12222 | R76: 6111 | T76: 1111 | W76: 556 | AB76: 2012-01-30T12:23:59 | AC76: 2011-09-19T15:11:45
A77: OTC11111090002 | C77: 周睿騰 | D77: 寶德能源科技股份有限公司 | E77: *廠房網路規劃建置 | G77: 2012-06-30 | I77: 2012-11-30 | K77: 0.4 | L77: 3000 | P77: 450 | Q77: 3000 | R77: 450 | S77: 2/15廠商建置及維運能力簡報 | T77: 3000 | W77: 450 | AB77: 2012-02-07T21:04:37 | AC77: 2011-09-02T16:24:42
A79: 11月小計 | T79: =SUM(T76:T78) -> 4111 | U79: 0 | V79: 0 | W79: 1006 | X79: 0 | Y79: 0 | Z79: 0 | AA79: 0
A80: 12月
A81: OTC11111090014 | C81: 洪瑞卿 | D81: 台新國際商業銀行股份有限公司 | E81: *台新HDS 3年維護案 | G81: 2012-02-20 | I81: 2012-02-20 | K81: 0.5 | L81: 32857 | P81: 16429 | Q81: 12222 | R81: 6111 | T81: 1111 | W81: 556 | AB81: 2012-01-30T12:23:59 | AC81: 2011-09-19T15:11:45
A82: OTC11111110008 | C82: 洪瑞卿 | D82: 上海商業儲蓄銀行股份有限公司 | E82: *海銀HDS NSC55維護(第一階段) | G82: 2012-02-29 | I82: 2012-03-02 | K82: 0.4 | L82: 250 | P82: 25 | Q82: 250 | R82: 25 | T82: 63 | W82: 6 | AB82: 2012-01-30T11:19:49 | AC82: 2011-11-28T12:01:59
A83: OTC11111080026 | C83: 林平三 | D83: 基嘉科技股份有限公司 | E83: *法務部偵查卷宗數位化影像管理系統(第二期) | G83: 2012-12-31 | I83: 2012-12-31 | K83: 0.4 | L83: 9873 | P83: 2863 | Q83: 9873 | R83: 2863 | T83: 9873 | W83: 2863 | AB83: 2012-02-13T14:31:25 | AC83: 2011-08-29T10:06:02
A84: OTC11111110006 | C84: 林平三 | D84: 精誠資訊股份有限公司 | E84: *台電公關室煤體數位化 | G84: 2012-11-30 | I84: 2012-12-31 | K84: 0.4 | L84: 272 | P84: 82 | Q84: 272 | R84: 82 | T84: 272 | W84: 82 | AB84: 2012-02-13T14:33:39 | AC84: 2011-11-13T16:15:22
A85: OTC11112020006 | C85: 林平三 | D85: 美得康科技股份有限公司 | E85: *西園醫院健診中心光碟輸出 | G85: 2012-11-30 | I85: 2012-12-31 | K85: 0.4 | L85: 876 | P85: 219 | Q85: 876 | R85: 219 | T85: 876 | W85: 219 | AB85: 2012-02-20T13:56:29 | AC85: 2012-02-06T14:24:49
A88: 12月小計 | T88: =SUM(T81:T87) -> 12195 | U88: =SUM(U81:U87) -> 0 | V88: =SUM(V81:V87) -> 0 | W88: =SUM(W81:W87) -> 3726 | X88: =SUM(X74:X87) -> 0 | Y88: =SUM(Y74:Y87) -> 0 | Z88: =SUM(Z74:Z87) -> 0 | AA88: =SUM(AA74:AA87) -> 0
A89: 總計 | T89: =SUM(T26,T33,T39,T50,T55,T62,T68,T74,T79,T88) -> 76810 | U89: =SUM(U26,U33,U39,U50,U55,U62,U68,U74,U79,U88) -> 0 | V89: 0 | W89: 17364 | X89: =SUM(X8,X14,X26,X33,X39,X50,X55,X62,X68,X74,X79,X88) -> 0 | Y89: =SUM(Y8,Y14,Y26,Y33,Y39,Y50,Y55,Y62,Y68,Y74,Y79,Y88) -> 0 | Z89: =SUM(Z8,Z14,Z26,Z33,Z39,Z50,Z55,Z62,Z68,Z74,Z79,Z88) -> 0 | AA89: =SUM(AA8,AA14,AA26,AA33,AA39,AA50,AA55,AA62,AA68,AA74,AA79,AA88) -> 0

Sheet Pipeline
A1: TC111 - Y2012 Pipeline銷售內容分析表
A2: CRM ID | B2: YYMM進度(P/B/F)-序 | C2: Sales Rep. | D2: 合約客戶 / 夥伴 | E2: 專案名稱 | F2: 專案(產品)內容 | G2: 預計得標或是取得訂單時間 | H2: 預計交貨時間 | I2: 預計驗收時間 | J2: 信心 % | K2: CRM Win rate % | L2: 全案 銷售 總Rev.(A) | M2: 外購 外包 成本(B) | N2: 內部 人力 費用(C) | O2: 裝機及保固 成本(D) | P2: 全案 銷售 總GP (A-B-C-D) | Q2: Y2012 可認列 Rev. | R2: Y2012 可認列 GP | S2: 進度說明 | T2: Sales認列金額 | X2: 維護認列金額
T4: 認列Revenue | U4: 認列成本 | V4: 認列內部成本 | W4: 認列GP | X4: 認列Revenue | Y4: 認列成本 | Z4: 認列內部成本 | AA4: 認列GP
A5: 1月
A8: 1月小計 | T8: =SUM(T6:T7) -> 0 | U8: 0 | V8: 0 | W8: 0 | X8: 0 | Y8: 0 | Z8: 0 | AA8: 0
A9: 2月
A12: 2月小計 | T12: =SUM(T10:T11) -> 0 | U12: =SUM(U10:U11) -> 0 | V12: =SUM(V10:V11) -> 0 | W12: =SUM(W10:W11) -> 0 | X12: =SUM(X11:X11) -> 0 | Y12: 0 | Z12: 0 | AA12: 0
A13: 3月
A14: OTC11111090013 | C14: 洪瑞卿 | D14: 華泰商業銀行股份有限公司 | E14: HDS採購案 | G14: 2012-03-30 | I14: 2012-03-30 | K14: 0.2 | L14: 3000 | P14: 300 | Q14: 3000 | R14: 300 | T14: 3000 | W14: 300 | AB14: 2011-09-19T14:21:53 | AC14: 2011-09-19T14:21:53
A15: OTC11111090017 | C15: 黎育誠 | D15: 行政院勞工委員會職業訓練局 | E15: IP控管設備建置案 | G15: 2012-03-01 | I15: 2012-03-30 | K15: 0.1 | L15: 1000 | P15: 100 | Q15: 1000 | R15: 100 | T15: 1000 | W15: 100 | AB15: 2011-09-20T10:20:16 | AC15: 2011-09-20T10:20:16
A19: 3月小計 | T19: =SUM(T14:T18) -> 4000 | U19: =SUM(U14:U18) -> 0 | V19: =SUM(V14:V18) -> 0 | W19: =SUM(W14:W18) -> 400 | X19: =SUM(X17:X18) -> 0 | Y19: 0 | Z19: 0 | AA19: 0
A20: 4月
A21: OTC11111010010 | C21: 周睿騰 | D21: 安麗日用品股份有限公司 | E21: *IBM Lotus renewal | G21: 2012-03-31 | I21: 2012-04-30 | K21: 0.3 | L21: 500 | P21: 100 | Q21: 500 | R21: 100 | T21: 500 | W21: 100 | AB21: 2012-02-07T20:58:15 | AC21: 2011-01-10T13:27:34
A22: OTC11112020001 | C22: 黎育誠 | D22: 新光人壽保險股份有限公司 | E22: *資料庫稽核系統-Imperva DBF採購案 | G22: 2012-03-26 | I22: 2012-04-30 | K22: 0.3 | L22: 2000 | P22: 200 | Q22: 2000 | R22: 200 | T22: 2000 | W22: 200 | AB22: 2012-02-02T11:46:51 | AC22: 2012-02-02T11:46:51
A23: OTC11112020009 | C23: 洪瑞卿 | D23: 台新國際商業銀行股份有限公司 | E23: *台新銀行香港DR案 | G23: 2012-03-30 | I23: 2012-04-30 | K23: 0.2 | L23: 3800 | P23: 380 | Q23: 3800 | R23: 380 | T23: 3800 | W23: 380 | AB23: 2012-02-13T16:27:07 | AC23: 2012-02-13T16:27:07
A24: OTC11112020015 | C24: 洪瑞卿 | D24: 台新國際商業銀行股份有限公司 | E24: *香港股票下單及WMS備援系統方案 | G24: 2012-03-30 | I24: 2012-04-30 | K24: 0.2 | L24: 3000 | P24: 300 | Q24: 3000 | R24: 300 | T24: 1000 | W24: 100 | AB24: 2012-02-20T14:42:58 | AC24: 2012-02-20T10:45:36
A25: OTC11111090020 | C25: 黎育誠 | D25: 中華電信股份有限公司 | E25: Veloxum採購案 | G25: 2012-03-01 | I25: 2012-04-01 | K25: 0.1 | L25: 1000 | P25: 100 | Q25: 1000 | R25: 100 | T25: 1000 | W25: 100 | AB25: 2012-01-16T09:29:32 | AC25: 2011-09-20T10:32:23
A26: OTC11111090021 | C26: 黎育誠 | D26: 行政院勞工委員會職業訓練局 | E26: 資料庫防火牆建置案 | G26: 2012-03-01 | I26: 2012-04-02 | K26: 0.1 | L26: 2000 | P26: 200 | Q26: 2000 | R26: 200 | T26: 2000 | W26: 200 | AB26: 2011-09-20T10:34:12 | AC26: 2011-09-20T10:34:12
A27: OTC11111090022 | C27: 黎育誠 | D27: 行政院勞工委員會職業訓練局 | E27: Veloxum建置案 | G27: 2012-03-01 | I27: 2012-04-02 | K27: 0.1 | L27: 1000 | P27: 100 | Q27: 1000 | R27: 100 | T27: 1000 | W27: 100 | AB27: 2011-09-20T10:35:48 | AC27: 2011-09-20T10:35:48
A29: 4月小計 | T29: =SUM(T21:T28) -> 11300 | U29: =SUM(U21:U28) -> 0 | V29: =SUM(V21:V28) -> 0 | W29: =SUM(W21:W28) -> 1180 | X29: =SUM(X21:X21) -> 0 | Y29: 0 | Z29: 0 | AA29: 0
A30: 5月
A31: OTC11112020015 | C31: 洪瑞卿 | D31: 台新國際商業銀行股份有限公司 | E31: *香港股票下單及WMS備援系統方案 | G31: 2012-03-30 | I31: 2012-04-30 | K31: 0.2 | L31: 3000 | P31: 300 | Q31: 3000 | R31: 300 | T31: 1000 | W31: 100 | AB31: 2012-02-20T14:42:58 | AC31: 2012-02-20T10:45:36
A32: OTC11112010007 | C32: 葉俊毅 | D32: 台中榮民總醫院 | E32: *台中榮民總醫院IP-Guard軟體銷售 | G32: 2012-04-10 | I32: 2012-05-15 | K32: 0.2 | L32: 2000 | P32: 200 | Q32: 2000 | R32: 200 | T32: 2000 | W32: 200 | AB32: 2012-02-17T17:37:42 | AC32: 2012-01-18T12:10:42
A33: OTC11111100009 | C33: 黎育誠 | D33: 吉恩立數位科技股份有限公司 | E33: DVM安全弱點管理系統建置案 | G33: 2012-05-01 | I33: 2012-05-31 | K33: 0.2 | L33: 500 | P33: 50 | Q33: 500 | R33: 50 | T33: 500 | W33: 50 | AB33: 2012-01-03T10:29:45 | AC33: 2011-10-31T10:44:42
A37: 5月小計 | T37: =SUM(T31:T36) -> 3500 | U37: =SUM(U31:U36) -> 0 | V37: =SUM(V31:V36) -> 0 | W37: =SUM(W31:W36) -> 350 | X37: =SUM(X31:X31) -> 0 | Y37: =SUM(Y31:Y31) -> 0 | Z37: =SUM(Z31:Z31) -> 0 | AA37: =SUM(AA31:AA31) -> 0
A38: 6月
A39: OTC11111010008 | C39: 洪瑞卿 | D39: 大同股份有限公司 | E39: *陸軍ME2案 | G39: 2012-06-29 | I39: 2012-06-29 | K39: 0.3 | L39: 60000 | P39: 9000 | Q39: 40000 | R39: 6000 | T39: 20000 | W39: 3000 | AB39: 2012-02-22T11:09:24 | AC39: 2011-01-07T17:13:52
A40: OTC11112020015 | C40: 洪瑞卿 | D40: 台新國際商業銀行股份有限公司 | E40: *香港股票下單及WMS備援系統方案 | G40: 2012-03-30 | I40: 2012-04-30 | K40: 0.2 | L40: 3000 | P40: 300 | Q40: 3000 | R40: 300 | T40: 1000 | W40: 100 | AB40: 2012-02-20T14:42:58 | AC40: 2012-02-20T10:45:36
A41: OTC11112010009 | C41: 葉俊毅 | D41: 博盛數碼動力 | E41: *RamSan Flash Storage 銷售 | G41: 2012-05-10 | I41: 2012-06-15 | K41: 0.2 | L41: 3000 | P41: 240 | Q41: 3000 | R41: 240 | T41: 3000 | W41: 240 | AB41: 2012-02-17T17:19:24 | AC41: 2012-01-18T12:33:29
A42: OTC11112020017 | C42: 黎育誠 | D42: 新光人壽保險股份有限公司 | E42: *網頁伺服器防火牆建置案 | G42: 2012-05-15 | I42: 2012-06-15 | K42: 0.2 | L42: 5760 | P42: 864 | Q42: 5760 | R42: 864 | T42: 5760 | W42: 864 | AB42: 2012-02-22T11:42:13 | AC42: 2012-02-22T11:42:13
A43: OTC11111080003 | C43: 洪瑞卿 | D43: 台新國際商業銀行股份有限公司 | E43: *台新EXCHANGE採購案 | G43: 2012-06-19 | I43: 2012-06-25 | K43: 0.2 | L43: 5000 | P43: 500 | Q43: 5000 | R43: 500 | T43: 5000 | W43: 500 | AB43: 2012-02-22T11:10:41 | AC43: 2011-08-03T11:28:34
A44: OTC11112020014 | C44: 洪瑞卿 | D44: 上海商業儲蓄銀行股份有限公司 | E44: *NEW SAS專案 | G44: 2012-06-29 | I44: 2012-06-29 | K44: 0.2 | L44: 5000 | P44: 500 | Q44: 5000 | R44: 500 | T44: 5000 | W44: 500 | AB44: 2012-02-20T10:39:06 | AC44: 2012-02-20T10:39:06
A45: OTC11112020016 | C45: 洪瑞卿 | D45: 台新國際商業銀行股份有限公司 | E45: *VM主機專案附屬Storage+Cisco MDS 9509版卡 | G45: 2012-06-29 | I45: 2012-06-29 | K45: 0.2 | L45: 3750 | P45: 375 | Q45: 3750 | R45: 375 | T45: 1250 | W45: 125 | AB45: 2012-02-20T10:54:38 | AC45: 2012-02-20T10:54:38
A46: OTC11112010010 | C46: 張凱 | D46: 臺北縣政府消防局 | E46: 緊急救護行動急診室建置案 | G46: 2012-03-30 | I46: 2012-06-29 | K46: 0.2 | L46: 15000 | P46: 1200 | Q46: 15000 | R46: 1200 | T46: 15000 | W46: 1200 | AB46: 2012-01-19T15:40:56 | AC46: 2012-01-19T15:40:56
A47: OTC11111030030 | C47: 周睿騰 | D47: 中華郵政股份有限公司 | E47: *Storage汰換 | G47: 2012-06-30 | I47: 2012-06-30 | K47: 0.2 | L47: 4000 | P47: 400 | Q47: 4000 | R47: 400 | S47: 將針對IBM DS8700進行擴充評估，傾向新購 | T47: 4000 | W47: 400 | AB47: 2012-02-17T10:46:45 | AC47: 2011-03-30T11:42:44
A48: OTC11111090015 | C48: 洪瑞卿 | D48: 上海商業儲蓄銀行股份有限公司 | E48: 海銀VSP採購案 | G48: 2012-06-30 | I48: 2012-06-30 | K48: 0.2 | L48: 5000 | P48: 500 | Q48: 5000 | R48: 500 | T48: 5000 | W48: 500 | AB48: 2011-09-19T15:14:20 | AC48: 2011-09-19T15:14:20
A49: OTC11111060007 | C49: 林平三 | D49: 宜誠資訊股份有限公司 | E49: 龍華科技大學5400購置 | G49: 2012-06-29 | I49: 2012-06-30 | K49: 0.2 | L49: 366 | P49: 106 | Q49: 366 | R49: 106 | T49: 366 | W49: 106 | AB49: 2011-12-01T16:49:27 | AC49: 2011-06-07T10:49:08
A50: PTC11112020013 | C50: 葉俊毅 | D50: 博盛數碼動力 | E50: *HDS 設備銷售 | G50: 2012-05-15 | I50: 2012-06-30 | K50: 0.2 | L50: 2000 | P50: 400 | Q50: 2000 | R50: 400 | T50: 2000 | W50: 400 | AB50: 2012-02-21T18:45:24 | AC50: 2012-02-17T17:41:00
A52: 6月小計 | T52: =SUM(T39:T51) -> 67376 | U52: 0 | V52: 0 | W52: 7935 | X52: 0 | Y52: 0 | Z52: 0 | AA52: 0
A53: 7月
A54: OTC11112020010 | C54: 林平三 | D54: 基嘉科技股份有限公司 | E54: *台銀人壽公文影像備份 | G54: 2012-06-29 | I54: 2012-07-31 | K54: 0.3 | L54: 160 | P54: 32 | Q54: 160 | R54: 32 | T54: 160 | W54: 32 | AB54: 2012-02-16T11:22:23 | AC54: 2012-02-16T11:22:23
A55: OTC11112020016 | C55: 洪瑞卿 | D55: 台新國際商業銀行股份有限公司 | E55: *VM主機專案附屬Storage+Cisco MDS 9509版卡 | G55: 2012-06-29 | I55: 2012-06-29 | K55: 0.2 | L55: 3750 | P55: 375 | Q55: 3750 | R55: 375 | T55: 1250 | W55: 125 | AB55: 2012-02-20T10:54:38 | AC55: 2012-02-20T10:54:38
A59: 7月小計 | T59: =SUM(T54:T58) -> 1410 | U59: =SUM(U54:U58) -> 0 | V59: 0 | W59: 157 | X59: 0 | Y59: 0 | Z59: 0 | AA59: 0 | AB59: 81914.92848 | AC59: 81914.92848
A60: 8月
A61: OTC11112020016 | C61: 洪瑞卿 | D61: 台新國際商業銀行股份有限公司 | E61: *VM主機專案附屬Storage+Cisco MDS 9509版卡 | G61: 2012-06-29 | I61: 2012-06-29 | K61: 0.2 | L61: 3750 | P61: 375 | Q61: 3750 | R61: 375 | T61: 1250 | W61: 125 | AB61: 2012-02-20T10:54:38 | AC61: 2012-02-20T10:54:38
A62: OTC11112020018 | C62: 黎育誠 | D62: 桃園縣政府水務局 | E62: *應用資訊系統整台平合規劃案 | G62: 2012-07-16 | I62: 2012-08-16 | K62: 0.2 | L62: 2000 | P62: 300 | Q62: 2000 | R62: 300 | T62: 2000 | W62: 300 | AB62: 2012-02-22T12:01:04 | AC62: 2012-02-22T11:44:53
A66: 8月小計 | T66: =SUM(T61:T65) -> 3250 | U66: 0 | V66: 0 | W66: 425 | X66: 0 | Y66: 0 | Z66: 0 | AA66: 0
A67: 9月
A68: OTC11111010008 | C68: 洪瑞卿 | D68: 大同股份有限公司 | E68: *陸軍ME2案 | G68: 2012-06-29 | I68: 2012-06-29 | K68: 0.3 | L68: 60000 | P68: 9000 | Q68: 40000 | R68: 6000 | T68: 10000 | W68: 1500 | AB68: 2012-02-22T11:09:24 | AC68: 2011-01-07T17:13:52
A69: OTC11111070009 | C69: 周睿騰 | D69: 裕融企業股份有限公司 | E69: Veloxum 採購 | F69: Veloxum | G69: 2012-08-31 | I69: 2012-09-30 | K69: 0.3 | L69: 800 | P69: 120 | Q69: 800 | R69: 120 | S69: 本案因另專案執行中, 延後至年底執行. 初步需求具體, 且大量使用VMware. | T69: 800 | W69: 120 | AB69: 2011-11-17T15:30:04 | AC69: 2011-07-22T10:09:54
A70: OTC11111030020 | C70: 周睿騰 | D70: 中華郵政股份有限公司 | E70: *PKI solution | G70: 2012-07-31 | I70: 2012-09-30 | K70: 0.2 | L70: 2000 | P70: 300 | Q70: 2000 | R70: 300 | S70: 本案是否獨立採購，尚未決議。 | T70: 2000 | W70: 300 | AB70: 2012-02-02T16:38:41 | AC70: 2011-03-23T11:34:05
A71: OTC11111030041 | C71: 周睿騰 | D71: 致伸科技(股)公司 | E71: *PC/LCD 汰換 | F71: 數量目前累進統計中 | G71: 2012-07-31 | I71: 2012-09-30 | K71: 0.2 | L71: 1500 | P71: 120 | Q71: 1500 | R71: 120 | S71: 本案評估Acer及Lenovo品牌, 並優先考慮以NB取代傳統PC+LCD | T71: 1500 | W71: 120 | AB71: 2012-02-07T21:45:28 | AC71: 2011-03-31T09:10:56
A72: OTC11111090032 | C72: 周睿騰 | D72: 頎邦科技股份有限公司 | E72: Veloxum needs | F72: Veloxum enhanced VMware performance | G72: 2012-08-31 | I72: 2012-09-30 | K72: 0.2 | L72: 1700 | P72: 306 | Q72: 1700 | R72: 306 | S72: 目前評估節餘款額度以及實際效能評估. | T72: 1700 | W72: 306 | AB72: 2011-11-17T15:28:25 | AC72: 2011-09-20T13:04:31
A75: 9月小計 | T75: =SUM(T68:T74) -> 16000 | U75: =SUM(U68:U74) -> 0 | V75: =SUM(V68:V74) -> 0 | W75: =SUM(W68:W74) -> 2346 | X75: =SUM(X68:X68) -> 0 | Y75: =SUM(Y68:Y68) -> 0 | Z75: =SUM(Z68:Z68) -> 0 | AA75: =SUM(AA68:AA68) -> 0
A76: 10月
A77: OTC11111030035 | C77: 周睿騰 | D77: 惠鴻資訊管理顧問(股)公司 | E77: *IT 主機採購 | F77: IBM RACK S-SVR * 2 + BLADE SVR * 2 | G77: 2012-08-31 | I77: 2012-10-31 | K77: 0.2 | L77: 750 | P77: 60 | Q77: 750 | R77: 60 | S77: 有預算及需求, 專案執行待全省個人電腦汰換完成驗收後執行. | T77: 750 | W77: 60 | AB77: 2012-02-07T21:44:28 | AC77: 2011-03-31T08:40:08
A78: OTC11111090034 | C78: 周睿騰 | D78: 惠鴻資訊管理顧問(股)公司 | E78: Veloxum needs | F78: 階段性提升VMware效能及節省VMware開支 | G78: 2012-08-31 | I78: 2012-10-31 | K78: 0.2 | L78: 900 | P78: 135 | Q78: 900 | R78: 135 | S78: 內部MIS評估中(包含上簽呈說明開支採購原由) | T78: 900 | W78: 135 | AB78: 2011-11-17T15:26:45 | AC78: 2011-09-20T13:10:22
A79: OTC11111030040 | C79: 周睿騰 | D79: 致伸科技(股)公司 | E79: HP SVR 採購 | F79: HP DL-160 G6 SVR *3 | G79: 2012-08-31 | I79: 2012-10-31 | K79: 0.1 | L79: 850 | P79: 68 | Q79: 850 | R79: 68 | S79: 有預算, 目前評估系統移轉技術問題, 以及與MIS人員討論提出RFP | T79: 850 | W79: 68 | AB79: 2011-11-17T14:59:46 | AC79: 2011-03-31T09:08:46
A82: 10月小計 | T82: =SUM(T77:T81) -> 2500 | U82: 0 | V82: 0 | W82: 263 | X82: 0 | Y82: 0 | Z82: 0 | AA82: 0
A83: 11月
A84: OTC11111090033 | C84: 周睿騰 | D84: 滙豐汽車股份有限公司 | E84: *PC/LCD汰換 | F84: 汰換6年前採購IBM 8434 PC + LCD (約350台) | G84: 2012-09-30 | I84: 2012-11-30 | K84: 0.2 | L84: 4800 | P84: 384 | Q84: 4800 | R84: 384 | S84: 目前資產盤點清算中, 並由各單位(保養廠, 營業所)各自提出需求, 由總公司統一發包. | T84: 4800 | W84: 384 | AB84: 2012-02-07T21:45:00 | AC84: 2011-09-20T13:07:45
A87: 11月小計 | T87: =SUM(T84:T86) -> 4800 | U87: =SUM(U84:U86) -> 0 | V87: =SUM(V84:V86) -> 0 | W87: =SUM(W84:W86) -> 384 | X87: =SUM(X82:X85) -> 0 | Y87: =SUM(Y82:Y85) -> 0 | Z87: =SUM(Z82:Z85) -> 0 | AA87: =SUM(AA82:AA85) -> 0
A88: 12月
A89: OTC11111010008 | C89: 洪瑞卿 | D89: 大同股份有限公司 | E89: *陸軍ME2案 | G89: 2012-06-29 | I89: 2012-06-29 | K89: 0.3 | L89: 60000 | P89: 9000 | Q89: 40000 | R89: 6000 | T89: 10000 | W89: 1500 | AB89: 2012-02-22T11:09:24 | AC89: 2011-01-07T17:13:52
A90: OTC11111120019 | C90: 張凱 | D90: 台灣省自來水股份有限公司 | E90: *會計管理資訊系統委外開發及維護案 | G90: 2012-03-30 | I90: 2012-12-31 | K90: 0.2 | L90: 30000 | P90: 2277 | Q90: 30000 | R90: 2277 | T90: 30000 | W90: 2277 | AB90: 2012-02-13T14:50:32 | AC90: 2011-12-26T15:45:08
A91: OTC11111090027 | C91: 周睿騰 | D91: 裕融企業(股)公司 | E91: TAC 裕融企業異地備援備份 | F91: RFP尚與客戶談論中 | G91: 2012-10-31 | I91: 2012-12-25 | K91: 0.1 | L91: 700 | P91: 84 | Q91: 700 | R91: 84 | S91: 台北---台中兩地資料備份備援機制. 目前就客戶預算, 時程及需求面與承辦人接洽中. | T91: 700 | W91: 84 | AB91: 2011-11-17T15:32:17 | AC91: 2011-09-20T12:38:02
A94: 12月小計 | T94: =SUM(T89:T93) -> 40700 | U94: =SUM(U89:U93) -> 0 | V94: =SUM(V89:V93) -> 0 | W94: =SUM(W89:W93) -> 3861 | X94: =SUM(X87:X93) -> 0 | Y94: =SUM(Y87:Y93) -> 0 | Z94: =SUM(Z87:Z93) -> 0 | AA94: =SUM(AA87:AA93) -> 0
A95: 總計 | T95: =SUM(T12,T19,T29,T37,T52,T59,T66,T75,T82,T87,T94) -> 154836 | U95: =SUM(U12,U19,U29,U37,U52,U59,U66,U75,U82,U87,U94) -> 0 | V95: =SUM(V12,V19,V29,V37,V52,V59,V66,V75,V82,V87,V94) -> 0 | W95: =SUM(W12,W19,W29,W37,W52,W59,W66,W75,W82,W87,W94) -> 17301 | X95: =SUM(X87,X94) -> 0 | Y95: 0 | Z95: 0 | AA95: 0 | AB95: 0 | AC95: 0
